Cogmind - Beta 14 @@@ ROGUE MODE // 2024.11.10 @ 10:18:24 Player: Dosh Result: Heading to fleet! Performance ------------- Evolutions (9) 4500 Regions Visited (35) 7000 Robots Destroyed (489) 2445 Value Destroyed (27193) 27193 Prototype IDs (51) 1020 Alien Tech Used (4) 800 Bonus (38357) 38357 TOTAL SCORE: 81315 Bonus ------- Triggered High Security 1000 Triggered Max Security 1000 High Alert Combat Kills 12204 Follower Combat Kills 9134 Entered Garrisons 1600 Used RIF Installer 5500 Aligned with FarCom 300 Used Core Reset Matrix 3000 Scanned by Researcher 500 Integrated Exoskeleton 5000 Win 3000 Friendly Fire -3881 Cogmind --------- Core Integrity 1025/1600 Matter 300/300 Energy 448/450 System Corruption 0% Temperature Hot (267) Movement Walking (30) Location To Fleet Rendezvous Parts ------- > --- POWER (1) -------- Improved Quantum Reactor > --- PROPULSION (3) --- Sigix Exoskeleton > --- UTILITY (4) ------ Experimental Targeting Computer Experimental Core Analyzer Experimental Core Analyzer Improved Armor Integrity Analyzer > --- WEAPON (3) ------- Sigix Sheargun Sigix Sheargun Sigix Sheargun > --- INVENTORY (5) ---- Core Stripper Peak State ------------ > --- POWER ------------ Improved Quantum Reactor > --- PROPULSION ------- Sigix Exoskeleton > --- UTILITY ---------- Experimental Targeting Computer Experimental Core Analyzer Experimental Core Analyzer Improved Armor Integrity Analyzer > --- WEAPON ----------- Sigix Sheargun Sigix Sheargun Sigix Sheargun > --- INVENTORY -------- Core Stripper [Rating: 240] Favorites ----------- Power Neutrino Core Engine Cooled Ion Engine Power Core Neutrino Core Reactor Light Quantum Reactor Propulsion Light Treads Treads Light Treads Leg Sigix Exoskeleton Wheel Armored Huge Wheel Hover Unit Combat Linear Gravjet Flight Unit Xenon Bombardment Thruster Utility Huge Storage Unit Device Transmission Jammer Storage Huge Storage Unit Processor Advanced Targeting Computer Hackware Relay Coupler [Sentry] Protection Hardened Medium Armor Plating Weapon Spread Laser Energy Gun Spread Laser Energy Cannon Heavy Phase Cannon Ballistic Gun Heavy Assault Rifle Ballistic Cannon Improved Light Cannon Launcher Grenade Launcher Special Weapon Improved Remote Datajack Impact Weapon Core Stripper Piercing Weapon Heavy Pick Build | -11 -10 -10 -9 -9 -9 -8 -8 -8 -8 -8 -7 -7 -6 -6 -6 -6 -6 -6 -5 -5 -4 -4 -4 -4 -4 -4 -4 -4 -3 -3 -2 -2 -2 -1 -1 ------- Run | Yrd Mat Min Mat Min Exi Min Mat Gar Mat Sto Fac Gar Fac Was Fac Gar Fac Gar Fac Gar Fac Was Fac Gar Fac Gar Fac Gar Res Tes Res Qua Sec Acc Com Slots Evolved 18 | . . . 2 . . . 2 . . . 2 . 2 . . . . . 2 . 2 . . . . . . . 2 . 2 . . 2 . Power 2 | . . . . . . . . . . . . . 1 . . . . . . . . . . . . . . . . . 1 . . . . Propulsion 4 | . . . 1 . . . . . . . 1 . . . . . . . . . . . . . . . . . 1 . 1 . . . . Utility 11 | . . . 1 . . . 2 . . . 1 . 1 . . . . . 2 . 2 . . . . . . . 1 . . . . 1 . Weapon 1 | . . . . . . . . . . . . . . . . . . . . . . . . . . . . . . . . . . 1 . Parts Attached 423 | 6 11 . 27 1 1 1 39 28 17 18 9 18 4 1 2 39 16 25 20 22 13 5 2 13 6 7 2 9 21 . 12 2 17 7 2 Power 38 | 1 1 . 1 . . 1 2 1 2 2 . 1 2 . . 2 3 2 1 2 1 4 . 1 . . 1 . 1 . 2 1 3 . . Engine 12 | 1 1 . 1 . . 1 2 . . . . . . . . 1 1 1 . 2 1 . . . . . . . . . . . . . . Core 15 | . . . . . . . . 1 2 2 . 1 2 . . 1 2 1 1 . . 1 . . . . . . . . . . 1 . . Reactor 11 | . . . . . . . . . . . . . . . . . . . . . . 3 . 1 . . 1 . 1 . 2 1 2 . . Propulsion 73 | 2 1 . 14 1 . . 9 2 5 6 2 3 . . . . . 3 3 3 1 1 . 1 2 . . 2 3 . 5 . 4 . . Treads 61 | 2 1 . 14 1 . . 9 2 5 6 1 3 . . . . . 3 . 3 1 1 . 1 2 . . 2 3 . . . 1 . . Leg . | . . . . . . . . . . . . . . . . . . . . . . . . . . . . . . . . . . . . Wheel 4 | . . . . . . . . . . . 1 . . . . . . . 3 . . . . . . . . . . . . . . . . Hover 1 | . . . . . . . . . . . . . . . . . . . . . . . . . . . . . . . 1 . . . . Flight 7 | . . . . . . . . . . . . . . . . . . . . . . . . . . . . . . . 4 . 3 . . Utility 179 | 1 4 . 7 . 1 . 17 6 7 5 7 10 2 1 2 14 6 8 10 10 9 . 2 10 4 7 1 7 11 . 2 . 6 1 1 Device 62 | . . . 1 . . . 3 3 4 3 1 4 1 . 1 9 . 3 5 3 4 . 2 4 2 1 1 2 2 . 1 . 2 . . Storage 8 | 1 3 . 1 . . . . 1 . . . . . . . . 1 . 1 . . . . . . . . . . . . . . . . Processor 9 | . . . . . . . . 1 . . . . . . . . 2 . . . . . . . . . . . . . . . 4 1 1 Hackware 63 | . . . . . . . 1 . . . . 5 . 1 1 4 3 4 4 7 5 . . 6 2 6 . 5 8 . 1 . . . . Protection 37 | . 1 . 5 . 1 . 13 1 3 2 6 1 1 . . 1 . 1 . . . . . . . . . . 1 . . . . . . Artifact . | . . . . . . . . . . . . . . . . . . . . . . . . . . . . . . . . . . . . Weapon 133 | 2 5 . 5 . . . 11 19 3 5 . 4 . . . 23 7 12 6 7 2 . . 1 . . . . 6 . 3 1 4 6 1 Energy Gun 51 | . . . 2 . . . 9 7 1 1 . 1 . . . 10 4 5 2 2 . . . . . . . . . . . . 1 5 1 Energy Cannon 28 | . . . . . . . . 3 1 3 . 2 . . . 4 1 3 1 1 1 . . . . . . . 2 . 3 1 2 . . Ballistic Gun 12 | 2 2 . 3 . . . 1 4 . . . . . . . . . . . . . . . . . . . . . . . . . . . Ballistic Cannon 2 | . 2 . . . . . . . . . . . . . . . . . . . . . . . . . . . . . . . . . . Launcher 12 | . 1 . . . . . 1 4 . . . . . . . 1 . 2 . 1 . . . . . . . . 2 . . . . . . Special Weapon 25 | . . . . . . . . 1 1 1 . 1 . . . 8 2 2 3 3 1 . . 1 . . . . 1 . . . . . . Impact Weapon 2 | . . . . . . . . . . . . . . . . . . . . . . . . . . . . . . . . . 1 1 . Slashing Weapon . | . . . . . . . . . . . . . . . . . . . . . . . . . . . . . . . . . . . . Piercing Weapon 1 | . . . . . . . . . . . . . . . . . . . . . . . . . . . . . 1 . . . . . . Special Melee Weapon . | . . . . . . . . . . . . . . . . . . . . . . . . . . . . . . . . . . . . Unidentified Prototypes 13 | . . . 2 . . . 1 . . . . . . . . . 1 . . . 1 . . . . . . . . . 1 1 6 . . Parts Lost 55 | . . . 1 . . 1 12 5 . . . . . . . 4 1 5 2 1 . . . . . . . 1 13 1 3 2 3 . . Power 8 | . . . . . . 1 1 . . . . . . . . 2 . . . 1 . . . . . . . . 1 . . 1 1 . . Propulsion 15 | . . . . . . . 3 1 . . . . . . . . . 2 1 . . . . . . . . . 3 1 1 1 2 . . Utility 24 | . . . 1 . . . 4 2 . . . . . . . 2 . 3 1 . . . . . . . . 1 9 . 1 . . . . Weapon 8 | . . . . . . . 4 2 . . . . . . . . 1 . . . . . . . . . . . . . 1 . . . . Highest Loss Streak 10 | . . . 1 . . 1 4 3 . . . . . . . 2 1 3 1 1 . . . . . . . 1 10 1 1 3 3 . . To Critical Strikes 2 | . . . . . . . 1 . . . . . . . . . . 1 . . . . . . . . . . . . . . . . . Average Slot Usage (%) 89 | . 92 100 99 100 100 99 94 98 99 99 92 89 83 86 86 76 79 89 85 87 83 84 79 80 82 81 81 81 71 28 26 14 63 77 80 Engine 4 | . 14 14 10 11 11 10 9 5 . . . . . . . . 5 6 3 4 6 2 . . . . . . . . . . . . . Core 4 | . . . . . . . . 3 8 9 7 7 13 13 13 10 6 6 7 5 3 3 5 5 5 5 5 5 3 . . . . . . Reactor 1 | . . . . . . . . . . . . . . . . . . . . . . 3 5 5 5 5 5 5 3 . 1 . 8 9 9 Treads 19 | . 28 28 33 33 33 33 26 27 26 27 15 14 13 13 13 13 13 17 12 5 10 10 10 10 10 10 10 10 11 9 3 . . . . Device 13 | . . . 6 11 11 11 10 18 14 16 15 14 13 13 11 17 13 18 20 13 12 10 14 21 24 23 25 26 19 . . . . . . Storage 7 | . 14 14 11 11 11 11 9 9 9 9 7 7 6 6 6 6 6 6 5 5 5 5 5 5 5 5 5 5 3 . . . . . . Processor 3 | . . . . . . . . . 9 9 7 7 6 6 3 . 4 5 . . . . . . . . . . . . . . 25 34 36 Hackware 8 | . . . . . . . 5 . . . . 12 9 13 17 8 10 13 12 20 27 31 22 20 21 21 18 17 14 14 14 . . . . Protection 8 | . 7 14 15 11 11 11 15 15 12 10 15 3 6 6 6 5 3 . 5 5 5 5 5 1 . . . . 3 . . . . . . Energy Gun 7 | . . . 15 22 22 22 17 11 1 8 7 1 . . . 7 5 3 7 2 . . . . . . . . . . . . 16 22 26 Energy Cannon 3 | . . . . . . . . 2 8 8 7 6 6 6 6 3 1 3 . 4 5 5 5 5 5 5 5 5 3 . . . . . . Ballistic Gun 2 | . 14 28 6 . . . . 4 7 . . . . . . . . . . . . . . . . . . . . . . . . . . Special Weapon 1 | . . . . . . . . . . . . 5 6 6 6 1 5 4 2 2 4 5 5 5 5 5 5 5 3 . . . . . . Peak Build Rating 240 | 6 11 11 19 18 22 22 37 48 49 50 61 77 86 81 82 90 91 85 89 97 113 118 124 127 123 123 123 130 140 50 66 41 226 239 240 Average Rating 67 | 4 9 11 17 18 19 21 30 38 48 49 60 65 82 81 81 84 85 77 85 88 107 115 123 121 119 119 121 126 124 48 38 22 190 233 234 On Entrance 74 | . 6 11 11 18 18 22 22 35 48 49 50 61 77 80 81 82 90 78 75 88 97 108 118 124 123 122 123 121 124 49 36 41 21 226 233 Naked Turns . | . . . . . . . . . . . . . . . . . . . . . . . . . . . . . . . . . . . . Heaviest Build 169 | 13 53 34 62 59 59 59 75 125 125 126 139 138 145 139 145 147 147 133 147 153 153 153 155 157 138 138 138 153 169 3 16 12 31 38 38 Greatest Support 178 | 40 40 40 63 63 63 63 63 63 65 66 86 150 150 150 150 150 150 150 117 150 150 150 150 150 150 150 150 150 178 3 24 18 60 60 60 Greatest Overweight (x) 13 | . 1 . 1 . . . 1 1 1 1 4 4 . . . . . 1 13 9 1 2 1 1 . . . 1 1 . 5 . . . . Average Overweight (x) . | . . . . . . . . 1 1 1 3 2 . . . . . . 2 3 . . . . . . . . . . . . . . . Largest Inventory Capacity 25 | 8 20 15 20 20 20 20 20 25 25 25 25 25 25 25 25 25 25 25 25 25 25 25 25 25 25 25 25 25 25 5 5 5 5 5 5 Average Capacity 21 | 6 14 15 19 20 20 20 20 20 25 25 25 25 25 25 25 25 25 25 25 25 25 25 25 25 25 25 25 25 22 5 5 5 5 5 5 Most Carried 25 | . 15 15 20 20 20 20 20 24 25 25 25 25 24 23 25 25 25 25 25 25 25 25 25 25 25 25 25 25 25 5 5 5 5 5 2 Average Carried 21 | . 10 15 19 20 19 19 19 19 24 24 24 24 23 23 23 22 24 22 23 24 24 24 24 24 23 24 25 24 19 4 4 4 4 2 2 Final Capacity 25 | 8 15 15 20 20 20 20 20 25 25 25 25 25 25 25 25 25 25 25 25 25 25 25 25 25 25 25 25 25 5 5 5 5 5 5 5 Final Carried 25 | . 15 15 20 20 20 20 20 24 25 25 25 25 24 23 23 25 25 23 24 25 25 25 25 25 23 25 25 25 4 5 5 5 3 2 2 Class Distribution -------------------- 38% | Botlord-Mutant 27% | Mutant 23% | Bothacker-Mutant 6% | Scavenger-Mutant 3% | Alien-Sigix Dominant Class ---------------- Mutant | -10/Materials Mutant | -10/Mines Mutant | -9/Materials Mutant | -9/Mines Mutant | -9/Exiles Mutant | -8/Mines Mutant | -8/Materials Mutant | -8/Garrison Bothacker-Mutant | -8/Materials Bothacker-Mutant | -8/Storage Bothacker-Mutant | -7/Factory Bothacker-Mutant | -7/Garrison Bothacker-Mutant | -6/Factory Bothacker-Mutant | -6/Waste Bothacker-Mutant | -6/Factory Botlord-Mutant | -6/Garrison Botlord-Mutant | -6/Factory Botlord-Mutant | -6/Garrison Botlord-Mutant | -5/Factory Botlord-Mutant | -5/Garrison Botlord-Mutant | -4/Factory Botlord-Mutant | -4/Waste Botlord-Mutant | -4/Factory Botlord-Mutant | -4/Garrison Botlord-Mutant | -4/Factory Botlord-Mutant | -4/Garrison Botlord-Mutant | -4/Factory Botlord-Mutant | -4/Garrison Botlord-Mutant | -3/Research Mutant | -3/Testing Botlord-Mutant | -2/Research Mutant | -2/Quarantine Alien-Sigix | -2/Section 7 Alien-Sigix | -1/Access Alien-Sigix | -1/Command Resources | -11 -10 -10 -9 -9 -9 -8 -8 -8 -8 -8 -7 -7 -6 -6 -6 -6 -6 -6 -5 -5 -4 -4 -4 -4 -4 -4 -4 -4 -3 -3 -2 -2 -2 -1 -1 ----------- Run | Yrd Mat Min Mat Min Exi Min Mat Gar Mat Sto Fac Gar Fac Was Fac Gar Fac Gar Fac Gar Fac Was Fac Gar Fac Gar Fac Gar Res Tes Res Qua Sec Acc Com Matter Collected 8924 | 251 583 36 581 8 . 15 368 636 574 365 99 486 52 . 209 689 273 618 288 354 404 109 . 273 182 175 52 309 269 . 390 . 191 . 85 Remotely . | . . . . . . . . . . . . . . . . . . . . . . . . . . . . . . . . . . . . Salvage Created 25360 | . 449 44 2029 129 . 126 1518 625 1160 1102 607 1323 29 . 57 913 120 273 352 626 200 133 . 436 105 238 . 407 928 . 471 . 7874 42 3044 Parts 895 | . 39 4 152 9 . 3 87 39 74 55 17 43 3 . 3 14 5 11 17 29 6 3 . 14 2 7 . 11 30 . 23 . 51 4 140 Haulers Intercepted 21 | . 2 . 6 . . . 6 . 6 1 . . . . . . . . . . . . . . . . . . . . . . . . . Recyclers Shooed 4 | . . . 2 . . . . . . 1 . . . . . . . . . . . . . . . . . . . . . . . . 1 Parts Field Recycled . | . . . . . . . . . . . . . . . . . . . . . . . . . . . . . . . . . . . . Retrieved Matter . | . . . . . . . . . . . . . . . . . . . . . . . . . . . . . . . . . . . . Parts Self-Destructed . | . . . . . . . . . . . . . . . . . . . . . . . . . . . . . . . . . . . . Prevented . | . . . . . . . . . . . . . . . . . . . . . . . . . . . . . . . . . . . . Kills | -11 -10 -10 -9 -9 -9 -8 -8 -8 -8 -8 -7 -7 -6 -6 -6 -6 -6 -6 -5 -5 -4 -4 -4 -4 -4 -4 -4 -4 -3 -3 -2 -2 -2 -1 -1 ------- Run | Yrd Mat Min Mat Min Exi Min Mat Gar Mat Sto Fac Gar Fac Was Fac Gar Fac Gar Fac Gar Fac Was Fac Gar Fac Gar Fac Gar Res Tes Res Qua Sec Acc Com Combat Hostiles Destroyed 401 | . 13 3 42 6 . 3 37 31 13 18 11 12 . . 1 21 2 11 5 7 2 . . 4 3 3 . 4 18 . 5 . 94 . 32 Melee 5 | . . . . . . . . . . . . . . . . . . . . . 1 . . . 2 . . . 1 . . . 1 . . Guns 270 | . 4 3 42 6 . 3 35 12 3 10 2 4 . . . 9 1 6 5 . . . . . . . . . . . . . 93 . 32 Cannons 71 | . 6 . . . . . . 2 9 7 8 8 . . . 5 1 1 . 2 1 . . 3 . 2 . 3 8 . 5 . . . . AOE 40 | . 3 . . . . . 2 17 . . . . . . 1 . . 4 . 5 . . . . . . . . 8 . . . . . . Classes Destroyed 25 | . 5 . 6 . . . 5 1 . . . . . . . 1 . 1 . . . 1 . . . . . . 3 . . . 1 . 1 Worker 16 | . . . 2 . . . 3 . 2 3 2 . 1 . . . . . 1 . . . . . . . . . . . 2 . . . . Builder 9 | . 2 . 1 . . . . . . 1 . . . . . . . . 1 . 1 . . . . . . . . . 1 . . 2 . Tunneler 1 | . . . . . . . 1 . . . . . . . . . . . . . . . . . . . . . . . . . . . . Hauler 21 | . 2 . 6 . . . 6 . 6 1 . . . . . . . . . . . . . . . . . . . . . . . . . Recycler 11 | . . . 4 . . . . . 2 2 . . . . . . . . 1 . . . . . . . . . . . 2 . . . . Mechanic 6 | . . . 2 . . . . . . . . . . . . . . . . . . . . . . . . . 1 . . . 3 . . Operator 4 | . . . 2 . . . 1 . . . . . . . . . . . . . . . . . . . . . . . . . . . 1 Watcher 20 | . 3 . 5 . . . 4 . 5 2 . . . . . . . . . . . . . . . . . . . . . . 1 . . Swarmer 73 | . 6 3 13 3 . . 3 12 3 . . . . . . 3 . 8 1 5 1 . . . 2 2 . . 3 . 5 . . . . Saboteur 10 | . . . . . . . . . . . . . . . . . . . . . . . . . . . . . 2 . . . 8 . . Grunt 169 | . 7 . 17 3 . 2 19 8 4 9 7 8 . . . 11 . 2 . . 2 . . 6 1 2 . 5 4 . . . 38 . 14 Brawler 20 | . . . 2 . . 1 . 1 . . . . . . . 1 . 1 . . . . . . . 1 . . 1 . . . 9 . 3 Duelist 29 | . . . . . . . 1 . . 1 1 . . . 1 2 . . . . . . . . . . . . 3 . . . 17 . 3 Protector 5 | . . . . . . . . . . . . . . . . . . . . . . . . . . . . . . . . . 3 . 2 Sentry 38 | . . . 10 . . . 9 2 6 7 2 1 . . . . 1 . . . . . . . . . . . . . . . . . . Demolisher 1 | . . . . . . . . . . . . . . . . . . . . . . . . . . . . . 1 . . . . . . Specialist 2 | . . . . . . . 2 . . . . . . . . . . . . . . . . . . . . . . . . . . . . Hunter 16 | . . . . . . . 2 5 . 1 . . . . . . 1 . . . 1 . . . . . . . 1 . . . 5 . . Programmer 28 | . . . . . . . . 3 . . 1 4 . . . 3 . . 4 2 . . . 1 . . . 2 2 . . . 6 . . Heavy 1 | . . . . . . . 1 . . . . . . . . . . . . . . . . . . . . . . . . . . . . Behemoth 3 | . . . . . . . . . . . . . . . . 1 . . . . . . . . . . . . . . . . . . 2 Investigator 2 | . . . . . . . . . . . . . . . . . . . . . . . . . . . . . 1 . . . 1 . . Striker 8 | . . . . . . . . . . . . . . . . . . 1 . . . . . . . . . . . . . . 5 . 2 Executioner 9 | . . . . . . . . . . . . . . . . . . . . . . . . . . . . . 2 . . . 3 . 4 Alpha 7 2 | . . . . . . . . . . . . . . . . . . . . . . . . . . . . . . . . . . . 2 Wasp 1 | . . . . . . . . . . . . . . . . . . . . . . 1 . . . . . . . . . . . . . Martyr 2 | . . . . . . . . . . . . . . . . . . . . . . 2 . . . . . . . . . . . . . Best Kill Streak 63 | . 5 3 9 3 . 3 4 14 4 7 3 3 1 . 1 4 1 3 2 5 1 . . 1 2 1 . 2 8 . 5 . 63 2 18 Combat Bots Only 59 | . 4 3 4 3 . 3 4 14 4 4 3 3 . . 1 4 1 3 2 5 1 . . 1 2 1 . 2 6 . 5 . 59 . 18 Max Kills in Single Turn 3 | . 3 1 2 1 . 1 2 3 2 2 2 1 1 . 1 1 1 3 1 3 1 1 . 1 1 1 . 1 3 . 1 . 3 1 2 Gunslinging 1 | . . . 1 . . . . 1 . . . . . . . . . . . . . . . . . . . . . . . . 1 . 1 Exploded 3 | . 1 . . . . . 1 3 . . . . . . 1 . . 3 . 3 . . . . . . . . 3 . . . . . . Melee 1 | . . . . . . . . . . . . . . . . . . . . . 1 . . . 1 . . . 1 . . . 1 . . Uniques/NPCs Destroyed . | . . . . . . . . . . . . . . . . . . . . . . . . . . . . . . . . . . . . Combat | -11 -10 -10 -9 -9 -9 -8 -8 -8 -8 -8 -7 -7 -6 -6 -6 -6 -6 -6 -5 -5 -4 -4 -4 -4 -4 -4 -4 -4 -3 -3 -2 -2 -2 -1 -1 -------- Run | Yrd Mat Min Mat Min Exi Min Mat Gar Mat Sto Fac Gar Fac Was Fac Gar Fac Gar Fac Gar Fac Was Fac Gar Fac Gar Fac Gar Res Tes Res Qua Sec Acc Com Hostile Shots Fired 2307 | . 53 7 151 15 . 13 208 122 44 57 60 96 8 . . 180 40 81 69 41 32 . . 13 19 54 6 38 205 38 63 11 313 . 270 Missed 717 | . 17 4 44 5 . 5 65 21 14 16 17 42 2 . . 47 16 22 19 11 9 . . 5 4 13 2 17 70 11 35 5 92 . 87 Damage Taken 23203 | . 368 25 1319 113 . 128 2506 1411 403 629 503 677 90 . . 1851 203 935 781 416 468 . . 173 151 336 35 226 2690 774 558 106 3466 . 1862 Core 3715 | . 43 . 88 22 . . 101 144 59 81 52 30 4 . . 182 19 319 35 27 85 . . 37 41 39 . 9 267 89 134 59 1174 . 575 Absorbed by Shields 4584 | . . . . . . . 85 132 . . . 21 . . . 745 211 521 211 369 327 . . 182 157 352 37 236 901 . . . . . 97 Reduced by Siege Mode 136 | . . . . . . . . . . . . . . . . 80 . 45 . . . . . . . . . . 11 . . . . . . Redirected to Shielding 123 | . . . . . . . 123 . . . . . . . . . . . . . . . . . . . . . . . . . . . . Ignored by Resistances 4804 | . . . . . . . . . . . 24 20 10 . . 41 . . 53 . . . . . . . . . . . . . 2617 . 2039 Regen/Repaired (Parts) 1666 | . . . . . . . . . 338 253 . . . . . . . . 152 . 248 241 . 32 325 41 11 . 25 . . . . . . Core Remaining (%) 65 | 100 . 82 . . . 72 . . . 30 . 88 . . . . . 38 . 93 . . . . . . . 81 . 72 . . 5 . 64 Volleys Fired 1689 | . 38 6 119 9 . 7 130 84 65 73 28 148 29 7 9 83 31 81 38 81 48 29 1 56 21 67 7 57 102 . 12 1 146 15 61 Largest 3 | . 2 2 2 2 . 2 2 2 2 2 2 2 1 1 1 2 2 2 2 2 1 1 1 1 1 1 1 1 1 . 1 1 2 3 3 Hottest 300 | . 78 46 130 130 . 130 130 155 170 170 170 170 90 7 90 170 170 170 150 165 105 105 7 105 105 105 105 105 120 . 110 120 200 300 300 Shots Fired 2599 | . 74 12 238 18 . 14 256 125 127 140 56 172 29 7 12 134 37 103 55 95 49 29 1 56 21 67 7 57 102 . 12 1 288 23 182 Gun 1522 | . 28 12 238 18 . 14 253 89 58 66 28 26 . . . 83 13 48 43 14 . . . . . . . . . . . . 286 23 182 Cannon 732 | . 44 . . . . . . 15 69 74 28 112 22 . 6 29 4 31 . 62 15 22 . 40 6 52 1 26 59 . 12 1 2 . . Launcher 35 | . 2 . . . . . 3 19 . . . . . . . 1 . 2 . 2 . . . . . . . . 6 . . . . . . Special 310 | . . . . . . . . 2 . . . 34 7 7 6 21 20 22 12 17 34 7 1 16 15 15 6 31 37 . . . . . . Kinetic 287 | . 72 12 106 . . . . 46 51 . . . . . . . . . . . . . . . . . . . . . . . . . . Thermal 1478 | . . . 132 18 . 14 253 60 76 140 56 138 22 . 6 112 17 79 43 76 15 22 . 40 6 52 1 26 59 . 12 1 2 . . Explosive 35 | . 2 . . . . . 3 19 . . . . . . . 1 . 2 . 2 . . . . . . . . 6 . . . . . . Electromagnetic . | . . . . . . . . . . . . . . . . . . . . . . . . . . . . . . . . . . . . Slashing 491 | . . . . . . . . . . . . . . . . . . . . . . . . . . . . . . . . . 286 23 182 Robot Hit Streak 36 | . 7 7 36 11 . 6 22 17 16 30 9 29 5 8 3 15 16 11 8 14 7 7 . 11 12 16 3 13 14 . 4 . 30 9 15 Robot Miss Streak 12 | . 3 2 10 4 . 4 12 6 3 6 3 3 4 . 3 4 4 5 6 5 6 3 . 1 1 3 1 2 4 . 3 . 4 . 3 Penetration Max 1 | . . . . . . . . . . . . . . . . . . . . . . . . . . . . . . . . . 1 1 1 Secondary Targets 49 | . 1 . 5 . . 1 4 1 . . . . . . . 5 . 1 . . . . . . . . . . . . . . 22 . 9 Max Gunslinging Chain 2 | . 1 . 1 . . 1 1 1 . . . . . . . 1 . 1 . . . . . . . . . . . . . . 1 . 2 Capacitor 196 | . . . . . . . . . . . . . . . . . . . . . . . . 40 6 52 1 26 59 . 12 . . . . Shots Hit Robots 1790 | . 44 8 193 15 . 14 227 63 75 79 45 111 15 7 4 87 31 61 50 54 29 21 . 35 19 36 4 42 74 1 17 . 214 2 113 Core Hits 1385 | . 31 3 194 26 . 22 316 77 34 52 27 45 2 . . 54 10 45 44 27 3 8 . 10 3 10 . 8 38 1 8 . 200 2 85 Critical Kills 14 | . . 1 . . . . . . 1 1 . 1 . . . 2 . . . 1 1 1 . 2 1 1 . 1 . . . . . . . Critical Parts Destroyed 1 | . . . . . . . . . 1 . . . . . . . . . . . . . . . . . . . . . . . . . . Critical Strikes 32 | . 2 1 . . . . . . 2 1 . 1 . . . 2 . . . 1 1 1 . 2 1 1 . 1 . . . . 11 . 4 Meltdown 13 | . . . . . . . . . 1 1 . 1 . . . 2 . . . 1 1 1 . 2 1 1 . 1 . . . . . . . Destroy 2 | . . 1 . . . . . . 1 . . . . . . . . . . . . . . . . . . . . . . . . . . Blast 2 | . 2 . . . . . . . . . . . . . . . . . . . . . . . . . . . . . . . . . . Sever 15 | . . . . . . . . . . . . . . . . . . . . . . . . . . . . . . . . . 11 . 4 Melee Attacks 36 | . . . . . . . . . . . . . . . . . . . . . . . . . . . . . 1 1 21 . 4 9 . Kinetic 13 | . . . . . . . . . . . . . . . . . . . . . . . . . . . . . . . . . 4 9 . Impact . | . . . . . . . . . . . . . . . . . . . . . . . . . . . . . . . . . . . . Slashing . | . . . . . . . . . . . . . . . . . . . . . . . . . . . . . . . . . . . . Piercing 23 | . . . . . . . . . . . . . . . . . . . . . . . . . . . . . 1 1 21 . . . . Sneak Attacks 9 | . . . . . . . . . . . . . . . . . . . . . . . . . . . . . . . 9 . . . . Combat Hostiles . | . . . . . . . . . . . . . . . . . . . . . . . . . . . . . . . . . . . . Follow-up Attacks . | . . . . . . . . . . . . . . . . . . . . . . . . . . . . . . . . . . . . Damage Inflicted 67139 | . 939 117 2895 217 . 188 3794 3087 2201 2682 1580 2817 452 . . 2280 385 1281 796 1820 246 648 . 899 237 921 . 537 3615 41 971 . 21566 189 9738 Guns 45696 | . 289 117 2796 189 . 188 3470 714 595 1317 707 552 . . . 1752 279 771 796 196 . . . . . . . . . . . . 21098 189 9681 Cannons 14458 | . 490 . . . . . . 333 1583 1221 806 2252 452 . . 368 106 69 . 1222 174 648 . 897 178 911 . 537 1920 . 291 . . . . Explosions 5264 | . 151 . . . . . 324 2040 . 107 . . . . . 154 . 441 . 384 . . . . . . . . 1663 . . . . . . Melee 821 | . . . . . . . . . . . . . . . . . . . . . . . . . . . . . 32 41 680 . 68 . . Ramming 900 | . 9 . 99 28 . . . . 23 37 67 13 . . . 6 . . . 18 72 . . 2 59 10 . . . . . . 400 . 57 Kinetic 2934 | . 779 117 1230 . . . . 230 510 . . . . . . . . . . . . . . . . . . . . . . . 68 . . Thermal 26320 | . . . 1566 189 . 188 3470 817 1668 2538 1513 2804 452 . . 2120 385 840 796 1418 174 648 . 897 178 911 . 537 1920 . 291 . . . . Explosive 5154 | . 41 . . . . . 324 2040 . 107 . . . . . 154 . 441 . 384 . . . . . . . . 1663 . . . . . . Electromagnetic 110 | . 110 . . . . . . . . . . . . . . . . . . . . . . . . . . . . . . . . . . Impact . | . . . . . . . . . . . . . . . . . . . . . . . . . . . . . . . . . . . . Slashing 30968 | . . . . . . . . . . . . . . . . . . . . . . . . . . . . . . . . . 21098 189 9681 Piercing 753 | . . . . . . . . . . . . . . . . . . . . . . . . . . . . . 32 41 680 . . . . Highest Corruption 35 | . . . . . . . . 7 7 7 1 4 15 29 29 32 35 35 6 2 1 1 1 2 . . . . 9 10 . . 2 . . Average Corruption 11 | . . . . . . . . 6 7 7 1 3 14 21 29 31 34 35 4 2 1 1 1 1 . . . . 3 9 . . 1 . . Corruption Purged 8 | . . . . . . . . . . . . . . . . . . . 6 . . . . 2 . . . . . . . . . . . Corruption Blocked . | . . . . . . . . . . . . . . . . . . . . . . . . . . . . . . . . . . . . Effects 559 | . . . . . . . . 6 95 95 4 42 7 8 24 90 37 100 6 4 8 9 3 6 . . . . 6 4 . . 5 . . Message Errors 129 | . . . . . . . . 2 22 22 1 11 1 1 3 20 12 19 2 1 1 3 1 1 . . . . 4 1 . . 1 . . Matter Fused 136 | . . . . . . . . 2 25 27 2 10 2 2 6 20 4 24 . 2 3 1 1 2 . . . . 2 . . . 1 . . Heat Flow Errors 64 | . . . . . . . . . 10 14 . 4 1 . 4 13 4 9 1 . 1 1 1 . . . . . . . . . 1 . . Energy Discharges 62 | . . . . . . . . . 9 10 1 9 1 2 3 6 4 11 1 . 2 1 . . . . . . . 2 . . . . . Parts Rejected 7 | . . . . . . . . . 1 1 . 1 . . . 2 . 2 . . . . . . . . . . . . . . . . . Parts Fused 13 | . . . . . . . . . 5 . . . . . . 4 1 3 . . . . . . . . . . . . . . . . . Data Loss (minor) 55 | . . . . . . . . 1 12 7 . 2 1 1 2 5 3 14 1 . . 3 . 2 . . . . . . . . 1 . . Data Loss (major) 27 | . . . . . . . . 1 3 5 . 2 . . 1 5 4 4 1 . . . . . . . . . . . . . 1 . . Misfires 23 | . . . . . . . . . 6 4 . . . . 3 4 2 2 . 1 1 . . . . . . . . . . . . . . Alerts 12 | . . . . . . . . . 1 2 . 1 . . 1 2 1 3 . . . . . 1 . . . . . . . . . . . Misdirections 10 | . . . . . . . . . . . . . 1 2 1 2 1 2 . . . . . . . . . . . 1 . . . . . Weapon Failures 21 | . . . . . . . . . 1 3 . 2 . . . 7 1 7 . . . . . . . . . . . . . . . . . Overload Shots . | . . . . . . . . . . . . . . . . . . . . . . . . . . . . . . . . . . . . Overflow Damage 828 | . 6 . . . . . 8 69 49 15 18 . 4 . . 40 . 21 . 61 69 26 . . . 15 . 19 187 . 194 . . . 27 Projectiles 273 | . 6 . . . . . . . 49 8 18 . 4 . . 40 . . . 9 36 26 . . . 15 . 19 33 . 10 . . . . Explosions 311 | . . . . . . . 8 69 . 7 . . . . . . . 21 . 52 . . . . . . . . 154 . . . . . . Melee 244 | . . . . . . . . . . . . . . . . . . . . . 33 . . . . . . . . . 184 . . . 27 Knockbacks 13 | . 8 . . . . . . . . 1 1 . . . . . . . . . 1 . . . . . . . . . . . 2 . . Impact 5 | . . . . . . . . . . 1 1 . . . . . . . . . 1 . . . . . . . . . . . 2 . . Kinetic 8 | . 8 . . . . . . . . . . . . . . . . . . . . . . . . . . . . . . . . . . Secondary . | . . . . . . . . . . . . . . . . . . . . . . . . . . . . . . . . . . . . Self-Inflicted Damage 218 | . . . . . . . . 124 . . 33 6 . . . . . . . . . . . . . . . . 55 . . . . . . Shots 12 | . . . . . . . . 7 . . . . . . . . . . . . . . . . . . . . 5 . . . . . . Rammed 42 | . 3 . 10 4 . . . . 5 4 2 1 . . . 1 . . . 2 4 . . 1 3 2 . . . . . . . . . Targets Rammed 71 | . 3 . 11 4 . . . . 5 4 2 1 . . . 1 . . . 2 4 . . 1 4 2 . . . . . . 26 . 1 Kicked 27 | . . . . . . . . . . . . . . . . . . . . . . . . . . . . . . . . . 26 . 1 Crushed 2 | . . . 1 . . . . . . . . . . . . . . . . . . . . . 1 . . . . . . . . . . Highest Temperature 522 | . 153 . 380 15 . 36 345 336 233 379 171 230 67 . 252 360 201 459 288 375 296 340 104 288 196 301 62 186 195 11 522 . 142 60 411 Average Temperature 79 | . 49 . 64 9 . 22 50 79 39 55 50 40 11 . 104 84 55 91 78 89 114 192 57 91 103 92 43 69 106 11 268 . 23 45 110 Received Heat Transfer 4962 | . 132 . 453 48 . 72 813 234 171 315 249 159 24 . . 413 56 52 106 39 52 . . 20 42 41 . 20 155 135 27 . 540 . 594 Effects 19 | . . . 1 . . . 2 . . 2 . . . . . . . 2 1 4 2 2 . . . . . . . . 3 . . . . Shutdowns 4 | . . . . . . . . . . . . . . . . . . . . 1 . 1 . . . . . . . . 2 . . . . Energy Bleed 6 | . . . 1 . . . 1 . . . . . . . . . . . 1 3 . . . . . . . . . . . . . . . Interference 6 | . . . . . . . . . . 2 . . . . . . . 2 . . 2 . . . . . . . . . . . . . . Short Circuit 3 | . . . . . . . 1 . . . . . . . . . . . . . . 1 . . . . . . . . 1 . . . . Siege Activations 8 | . . . . . . . . . . . . . . . . 4 . 1 . . . . . . . . . . 3 . . . . . . Total Turns 138 | . . . . . . . . . . . . . . . . 74 . 42 . . . . . . . . . . 22 . . . . . . Longest Duration 42 | . . . . . . . . . . . . . . . . 31 . 42 . . . . . . . . . . 8 . . . . . . Robots Corrupted 1 | . . . . . . . . . . . . . . . . . . . . . 1 . . . . . . . . . . . . . . Combat Hostiles . | . . . . . . . . . . . . . . . . . . . . . . . . . . . . . . . . . . . . Parts Fried 3 | . . . . . . . . . . . . . . . . . . . . . 3 . . . . . . . . . . . . . . Impact Corruptions 3 | . . . . . . . . . . . . . . . . . . . . . 2 . . . . . . . . . . . . . 1 Robots Melted 21 | . . . . . . . . . 1 1 1 1 . . . 7 . . . 1 1 1 . 3 1 1 . 1 1 . . . . . . Combat Hostiles 15 | . . . . . . . . . 1 1 1 . . . . 7 . . . . . . . 1 1 1 . 1 1 . . . . . . Parts Melted 74 | . . . 1 . . . 2 . 6 9 6 9 . . . 16 . . 2 2 1 . . 8 2 2 . 1 6 . . . 1 . . Heat Transferred 31858 | . . . 1915 250 . 230 4350 898 1803 3996 2314 3374 481 . . 3975 761 969 615 1403 185 571 . 608 185 907 . 480 1588 . . . . . . Parts Sabotaged . | . . . . . . . . . . . . . . . . . . . . . . . . . . . . . . . . . . . . Parts Stolen . | . . . . . . . . . . . . . . . . . . . . . . . . . . . . . . . . . . . . Parts Stripped . | . . . . . . . . . . . . . . . . . . . . . . . . . . . . . . . . . . . . Power Chain Reactions . | . . . . . . . . . . . . . . . . . . . . . . . . . . . . . . . . . . . . Alert | -11 -10 -10 -9 -9 -9 -8 -8 -8 -8 -8 -7 -7 -6 -6 -6 -6 -6 -6 -5 -5 -4 -4 -4 -4 -4 -4 -4 -4 -3 -3 -2 -2 -2 -1 -1 ------- Run | Yrd Mat Min Mat Min Exi Min Mat Gar Mat Sto Fac Gar Fac Was Fac Gar Fac Gar Fac Gar Fac Was Fac Gar Fac Gar Fac Gar Res Tes Res Qua Sec Acc Com Peak Influence 3949 | . 347 296 682 335 . 80 360 1142 641 284 298 1469 1034 406 347 787 443 919 526 1314 1355 449 42 1831 1331 2412 1416 2133 3520 2025 1197 678 3949 2374 2698 Initial 2368 | . . 114 39 265 . . 31 137 556 14 98 124 770 361 284 . 413 . 482 86 689 449 . 29 961 637 1266 980 1199 1980 1133 593 381 2368 1462 Average 568 | . 159 151 244 205 . 70 141 659 186 150 134 833 904 387 252 377 313 519 334 813 673 249 17 1182 1005 1532 1353 1692 2377 1995 1088 631 2325 2301 1875 Maximum Alert Level 5 | . 1 1 2 1 . . 1 4 2 1 1 4 3 2 1 3 2 3 2 4 4 2 . 5 4 5 4 5 5 5 4 2 5 5 5 Low Security (%) 36 | 100 66 69 45 46 . 100 75 13 67 59 84 3 . . 34 23 18 19 10 2 . 34 100 11 . . . . . . . . . . . Level 1 23 | . 33 30 35 53 . . 24 10 18 40 15 13 . 56 65 35 23 7 65 15 29 32 . 11 . . . . . . . . 6 . . Level 2 12 | . . . 19 . . . . 16 13 . . 25 . 43 . 28 57 38 24 14 29 32 . 4 . 8 . . . . . 100 11 . . Level 3 9 | . . . . . . . . 54 . . . 21 100 . . 12 . 34 . 37 20 . . 7 82 24 . 6 . . 53 . . . . Level 4 8 | . . . . . . . . 4 . . . 36 . . . . . . . 29 20 . . 29 17 14 100 29 20 . 46 . . . 32 Level 5 5 | . . . . . . . . . . . . . . . . . . . . . . . . 35 . 52 . 64 14 100 . . . 100 25 High Security 2 | . . . . . . . . . . . . . . . . . . . . . . . . . . . . . 65 . . . . . 42 Max Security 1 | . . . . . . . . . . . . . . . . . . . . . . . . . . . . . . . . . 81 . . Squads Dispatched 120 | . 4 . 5 . . . 8 . 1 2 4 . 2 . 2 . 2 . 2 . 10 . . . 4 . 1 . 26 1 4 1 31 1 9 Investigation 12 | . 4 . 2 . . . 1 . 1 . 2 . . . . . . . . . 1 . . . . . . . . . 1 . . . . Extermination 7 | . . . . . . . . . . . 2 . 1 . . . . . 2 . 1 . . . . . . . . . 1 . . . . Reinforcement 26 | . . . 2 . . . 3 . . 2 . . 1 . 2 . 2 . . . 5 . . . 2 . . . 2 1 1 1 1 1 . Assault 67 | . . . 1 . . . . . . . . . . . . . . . . . 2 . . . . . 1 . 23 . 1 . 30 . 9 Garrison 8 | . . . . . . . 4 . . . . . . . . . . . . . 1 . . . 2 . . . 1 . . . . . . Intercept . | . . . . . . . . . . . . . . . . . . . . . . . . . . . . . . . . . . . . Searches Triggered . | . . . . . . . . . . . . . . . . . . . . . . . . . . . . . . . . . . . . Construction Impeded 1 | . . . . . . . . . . . . . . . 1 . . . . . . . . . . . . . . . . . . . . Haulers Reinforced 3 | . . . . . . . . . . . . . 1 . . . . . . . 2 . . . . . . . . . . . . . . Active Scanning Responses . | . . . . . . . . . . . . . . . . . . . . . . . . . . . . . . . . . . . . Cargo Convoy Interrupts . | . . . . . . . . . . . . . . . . . . . . . . . . . . . . . . . . . . . . Stealth | -11 -10 -10 -9 -9 -9 -8 -8 -8 -8 -8 -7 -7 -6 -6 -6 -6 -6 -6 -5 -5 -4 -4 -4 -4 -4 -4 -4 -4 -3 -3 -2 -2 -2 -1 -1 --------- Run | Yrd Mat Min Mat Min Exi Min Mat Gar Mat Sto Fac Gar Fac Was Fac Gar Fac Gar Fac Gar Fac Was Fac Gar Fac Gar Fac Gar Res Tes Res Qua Sec Acc Com Distress Signals 25 | . 2 . 5 . . . 3 1 5 1 . 1 1 . . . 1 . . . 1 . . . . 1 . . . . . 1 2 . . Communications Jammed 277 | . . . . . . . 1 1 8 8 4 7 8 . . . . . 10 . 44 . . . 2 2 22 . 160 . . . . . . Distress Signals 273 | . . . . . . . . 1 8 8 4 7 8 . . . . . 10 . 43 . . . 2 2 22 . 158 . . . . . . Times Spotted 1036 | . 26 11 59 7 . 3 61 30 30 25 11 33 9 6 4 39 16 33 21 31 52 4 1 40 18 50 11 30 132 14 18 7 161 . 43 Peak Tracking Total 25 | . 5 3 6 3 . 3 5 7 5 4 3 3 3 2 3 7 4 5 5 6 6 1 1 8 5 10 3 4 21 11 10 5 25 . 14 Tactical Retreats 51 | . 6 1 3 1 . . 2 . 1 2 . . . . . 2 1 1 . . 2 . . 2 . 2 . . 12 1 1 1 9 . 1 Traps | -11 -10 -10 -9 -9 -9 -8 -8 -8 -8 -8 -7 -7 -6 -6 -6 -6 -6 -6 -5 -5 -4 -4 -4 -4 -4 -4 -4 -4 -3 -3 -2 -2 -2 -1 -1 ------- Run | Yrd Mat Min Mat Min Exi Min Mat Gar Mat Sto Fac Gar Fac Was Fac Gar Fac Gar Fac Gar Fac Was Fac Gar Fac Gar Fac Gar Res Tes Res Qua Sec Acc Com Traps Triggered 56 | . 3 . . . . . . 6 3 . . 4 4 . . 3 3 3 1 9 2 . . 6 . . . 4 . 1 1 . . . 3 Indirectly . | . . . . . . . . . . . . . . . . . . . . . . . . . . . . . . . . . . . . Trap Hack Attempts . | . . . . . . . . . . . . . . . . . . . . . . . . . . . . . . . . . . . . Triggered . | . . . . . . . . . . . . . . . . . . . . . . . . . . . . . . . . . . . . Disarmed . | . . . . . . . . . . . . . . . . . . . . . . . . . . . . . . . . . . . . Reprogrammed . | . . . . . . . . . . . . . . . . . . . . . . . . . . . . . . . . . . . . Reused . | . . . . . . . . . . . . . . . . . . . . . . . . . . . . . . . . . . . . Traps Extracted . | . . . . . . . . . . . . . . . . . . . . . . . . . . . . . . . . . . . . Installed . | . . . . . . . . . . . . . . . . . . . . . . . . . . . . . . . . . . . . Triggered . | . . . . . . . . . . . . . . . . . . . . . . . . . . . . . . . . . . . . Machines | -11 -10 -10 -9 -9 -9 -8 -8 -8 -8 -8 -7 -7 -6 -6 -6 -6 -6 -6 -5 -5 -4 -4 -4 -4 -4 -4 -4 -4 -3 -3 -2 -2 -2 -1 -1 ---------- Run | Yrd Mat Min Mat Min Exi Min Mat Gar Mat Sto Fac Gar Fac Was Fac Gar Fac Gar Fac Gar Fac Was Fac Gar Fac Gar Fac Gar Res Tes Res Qua Sec Acc Com Machines Disabled 72 | . 1 . 2 . . . . 3 . 9 1 5 3 . . 2 . 4 1 4 4 . . 5 1 4 . 4 4 . 1 1 6 2 5 Max in Single Turn 2 | . 1 . 1 . . . . 1 . 2 1 1 . . . 1 . 1 . 1 . . . 1 1 1 . 1 1 . 1 1 1 1 2 Garrison Access 2 | . . . . . . . . . . . . . . . . . . . . . 1 . . . . . . . 1 . . . . . . Garrison Relay 29 | . . . . . . . . 2 . . . 5 . . . 2 . 4 . 4 . . . 5 . 4 . 3 . . . . . . . Phase Generator 1 | . . . . . . . . . . . . . . . . . . . . . . . . . . . . . . . . . . . 1 Machines Repaired . | . . . . . . . . . . . . . . . . . . . . . . . . . . . . . . . . . . . . Machines Dismantled 1 | . . . . . . . . . . 1 . . . . . . . . . . . . . . . . . . . . . . . . . Machines Sabotaged . | . . . . . . . . . . . . . . . . . . . . . . . . . . . . . . . . . . . . Overloaded Fab Kills . | . . . . . . . . . . . . . . . . . . . . . . . . . . . . . . . . . . . . Hacking | -11 -10 -10 -9 -9 -9 -8 -8 -8 -8 -8 -7 -7 -6 -6 -6 -6 -6 -6 -5 -5 -4 -4 -4 -4 -4 -4 -4 -4 -3 -3 -2 -2 -2 -1 -1 --------- Run | Yrd Mat Min Mat Min Exi Min Mat Gar Mat Sto Fac Gar Fac Was Fac Gar Fac Gar Fac Gar Fac Was Fac Gar Fac Gar Fac Gar Res Tes Res Qua Sec Acc Com Machines Accessed 128 | . 10 1 16 . 2 1 15 3 12 14 6 3 1 . 2 3 1 2 8 3 1 . 2 3 2 3 2 2 . . 5 . 1 2 2 Terminals 97 | . 8 1 10 . . 1 10 3 9 12 4 3 1 . 1 3 . 2 5 3 1 . 1 3 . 3 1 2 . . 5 . 1 2 2 Fabricators 2 | . . . . . . . . . . . 1 . . . . . . . 1 . . . . . . . . . . . . . . . . Repair Stations 10 | . . . 2 . . . 2 . 2 2 . . . . . . . . 1 . . . . . 1 . . . . . . . . . . Recycling Units 5 | . 2 . 2 . . . 1 . . . . . . . . . . . . . . . . . . . . . . . . . . . . Scanalyzers 4 | . . . 2 . . . 1 . 1 . . . . . . . . . . . . . . . . . . . . . . . . . . Garrison Access 8 | . . . . . . . 1 . . . 1 . . . 1 . 1 . 1 . . . 1 . 1 . 1 . . . . . . . . Total Hacks 319 | . 28 4 43 . 2 4 44 5 44 39 11 5 2 . 2 6 1 4 17 8 2 . 4 6 3 6 4 3 . . 14 . 2 3 3 Successful 175 | . 15 1 31 . 2 3 31 2 28 27 2 2 1 . 1 . 1 . 8 1 . . 2 1 3 3 2 1 . . 5 . 1 1 . Failed 142 | . 12 2 12 . . 1 13 3 16 12 9 3 1 . 1 6 . 4 9 7 2 . 2 5 . 3 2 2 . . 9 . 1 2 3 Catastrophic 28 | . 1 . . . . . 2 2 2 1 3 1 1 . . 3 . . 4 1 1 . . 1 . . . 1 . . 2 . 1 . 1 Database Lockouts 2 | . 1 1 . . . . . . . . . . . . . . . . . . . . . . . . . . . . . . . . . Manual 149 | . 20 4 18 . 1 5 28 3 17 19 5 1 . . . . . . 12 1 . . 2 1 . . 2 1 . . 6 . 2 . 1 Terminals 244 | . 26 4 29 . . 4 33 5 27 29 7 5 2 . 1 6 . 4 11 8 2 . 2 6 . 6 2 3 . . 14 . 2 3 3 Fabricators 4 | . . . . . . . . . . . 2 . . . . . . . 2 . . . . . . . . . . . . . . . . Repair Stations 34 | . . . 3 . . . 4 . 13 10 . . . . . . . . 2 . . . . . 2 . . . . . . . . . . Recycling Units 6 | . 2 . 3 . . . 1 . . . . . . . . . . . . . . . . . . . . . . . . . . . . Scanalyzers 16 | . . . 8 . . . 4 . 4 . . . . . . . . . . . . . . . . . . . . . . . . . . Garrison Access 13 | . . . . . . . 2 . . . 2 . . . 1 . 1 . 2 . . . 2 . 1 . 2 . . . . . . . . Terminal Hacks 68 | . 5 1 11 . 2 3 12 2 7 10 . 2 1 . . . . . 1 1 . . . 1 . 3 . 1 . . 4 . . 1 . Record 1 | . . . . . 1 . . . . . . . . . . . . . . . . . . . . . . . . . . . . . . Part Schematic 1 | . 1 . . . . . . . . . . . . . . . . . . . . . . . . . . . . . . . . . . Robot Schematic 2 | . 1 . . . . . . . . 1 . . . . . . . . . . . . . . . . . . . . . . . . . Robot Analysis 6 | . . 1 2 . . 3 . . . . . . . . . . . . . . . . . . . . . . . . . . . . . Prototype ID Bank 7 | . 2 . 2 . . . 3 . . . . . . . . . . . . . . . . . . . . . . . . . . . . Open Door 9 | . . . . . . . . . . 5 . 1 . . . . . . . . . . . . . 1 . . . . 1 . . 1 . Open DSF 1 | . . . . . . . . . . . . . . . . . . . . . . . . . . . . . . . 1 . . . . Level Access Points 1 | . . . . . . . 1 . . . . . . . . . . . . . . . . . . . . . . . . . . . . Branch Access Points 4 | . . . 1 . . . . . 1 . . . 1 . . . . . . . . . . . . . . . . . 1 . . . . Emergency Access Points 3 | . . . . . . . . . . . . 1 . . . . . . . 1 . . . . . 1 . . . . . . . . . Machine Index 1 | . . . . . . . . . 1 . . . . . . . . . . . . . . . . . . . . . . . . . . Terminal Index 3 | . . . 1 . . . . . 1 1 . . . . . . . . . . . . . . . . . . . . . . . . . Garrison Index 1 | . . . . . . . 1 . . . . . . . . . . . . . . . . . . . . . . . . . . . . Alert Level 5 | . . . 1 . . . 3 . . . . . . . . . . . 1 . . . . . . . . . . . . . . . . Unreport Threat 11 | . . . 2 . . . 4 . 3 1 . . . . . . . . . . . . . . . . . . . . 1 . . . . Maintenance Status 1 | . . . 1 . . . . . . . . . . . . . . . . . . . . . . . . . . . . . . . . Surveillance Status 1 | . . . 1 . . . . . . . . . . . . . . . . . . . . . . . . . . . . . . . . Hauler Manifests 1 | . . . . . . . . . . 1 . . . . . . . . . . . . . . . . . . . . . . . . . Zone Layout 3 | . 1 . . . . . . . 1 1 . . . . . . . . . . . . . . . . . . . . . . . . . Garrison Registry 2 | . . . . . . . . 1 . . . . . . . . . . . . . . . . . . . 1 . . . . . . . Patrol Navigation 1 | . . . . . . . . 1 . . . . . . . . . . . . . . . . . . . . . . . . . . . Security Stations 2 | . . . . . . . . . . . . . . . . . . . . . . . . 1 . 1 . . . . . . . . . Derelict Proto ID Bank 1 | . . . . . 1 . . . . . . . . . . . . . . . . . . . . . . . . . . . . . . Fabricator Hacks 2 | . . . . . . . . . . . . . . . . . . . 2 . . . . . . . . . . . . . . . . Load Schematic 1 | . . . . . . . . . . . . . . . . . . . 1 . . . . . . . . . . . . . . . . Build 1 | . . . . . . . . . . . . . . . . . . . 1 . . . . . . . . . . . . . . . . Repair Station Hacks 25 | . . . 1 . . . 3 . 10 9 . . . . . . . . . . . . . . 2 . . . . . . . . . . Scan Component 14 | . . . 1 . . . 2 . 5 5 . . . . . . . . . . . . . . 1 . . . . . . . . . . Repair 11 | . . . . . . . 1 . 5 4 . . . . . . . . . . . . . . 1 . . . . . . . . . . Recycling Unit Hacks 1 | . . . 1 . . . . . . . . . . . . . . . . . . . . . . . . . . . . . . . . Retrieve Components 1 | . . . 1 . . . . . . . . . . . . . . . . . . . . . . . . . . . . . . . . Scanalyzer 15 | . . . 8 . . . 4 . 3 . . . . . . . . . . . . . . . . . . . . . . . . . . Insert Component 7 | . . . 4 . . . 2 . 1 . . . . . . . . . . . . . . . . . . . . . . . . . . Analyze 8 | . . . 4 . . . 2 . 2 . . . . . . . . . . . . . . . . . . . . . . . . . . Garrison Access Hacks 11 | . . . . . . . 1 . . . 1 . . . 1 . 1 . 2 . . . 2 . 1 . 2 . . . . . . . . Unlock Access 8 | . . . . . . . 1 . . . 1 . . . 1 . 1 . 1 . . . 1 . 1 . 1 . . . . . . . . Coupler Status 3 | . . . . . . . . . . . . . . . . . . . 1 . . . 1 . . . 1 . . . . . . . . Unauthorized Hacks 53 | . 10 . 10 . . . 11 . 8 8 1 . . . . . . . 3 . . . . . . . . . . . 1 . 1 . . Terminals 45 | . 8 . 8 . . . 9 . 8 8 . . . . . . . . 2 . . . . . . . . . . . 1 . 1 . . Track 3 | . . . 1 . . . . . . 1 . . . . . . . . . . . . . . . . . . . . . . 1 . . Assimilate 3 | . . . . . . . 1 . 1 1 . . . . . . . . . . . . . . . . . . . . . . . . . Botnet 12 | . 2 . 2 . . . 2 . 2 2 . . . . . . . . 2 . . . . . . . . . . . . . . . . Operators 4 | . 1 . . . . . 1 . 1 . . . . . . . . . . . . . . . . . . . . . 1 . . . . Skim 23 | . 5 . 5 . . . 5 . 4 4 . . . . . . . . . . . . . . . . . . . . . . . . . Fabricators . | . . . . . . . . . . . . . . . . . . . . . . . . . . . . . . . . . . . . Repair Stations 1 | . . . . . . . . . . . . . . . . . . . 1 . . . . . . . . . . . . . . . . Mechanics 1 | . . . . . . . . . . . . . . . . . . . 1 . . . . . . . . . . . . . . . . Recycling Units 5 | . 2 . 2 . . . 1 . . . . . . . . . . . . . . . . . . . . . . . . . . . . Reject 1 | . . . . . . . 1 . . . . . . . . . . . . . . . . . . . . . . . . . . . . Tunnel 4 | . 2 . 2 . . . . . . . . . . . . . . . . . . . . . . . . . . . . . . . . Scanalyzers . | . . . . . . . . . . . . . . . . . . . . . . . . . . . . . . . . . . . . Garrison Access 2 | . . . . . . . 1 . . . 1 . . . . . . . . . . . . . . . . . . . . . . . . Reprogram 1 | . . . . . . . 1 . . . . . . . . . . . . . . . . . . . . . . . . . . . . Eject 1 | . . . . . . . . . . . 1 . . . . . . . . . . . . . . . . . . . . . . . . Data Cores Recovered 2 | . . . . . . . . . . . . . . . . . . . . . . . . . . . 1 . . . . . . . 1 Used 1 | . . . . . . . . . . . . . . . . . . . . . . . . . . . 1 . . . . . . . . Hacking Detections 99 | . 7 1 12 . . 1 11 2 10 9 6 2 1 . 1 3 1 2 7 3 1 . 1 3 2 2 1 2 . . 3 . 1 2 2 Full Trace Events 8 | . 1 . . . . . . . 1 . 1 . . . . 1 . . . 1 1 . . 1 . 1 . . . . . . . . . Feedback Events 2 | . . . . . . . . . . . . . . . . 1 . . . . . . . 1 . . . . . . . . . . . Corruption 2 | . . . . . . . . . . . . . . . . 1 . . . . . . . 1 . . . . . . . . . . . Feedback Blocked . | . . . . . . . . . . . . . . . . . . . . . . . . . . . . . . . . . . . . Robot Schematics Acquired 2 | . 1 . . . . . . . . 1 . . . . . . . . . . . . . . . . . . . . . . . . . Robots Built 1 | . . . . . . . . . . . . . . . . . . . 1 . . . . . . . . . . . . . . . . Authchips 1 | . . . . . . . . . . . . . . . . . . . 1 . . . . . . . . . . . . . . . . Time 40 | . . . . . . . . . . . . . . . . . . . 40 . . . . . . . . . . . . . . . . Total Robot Build Rating 1 | . . . . . . . . . . . . . . . . . . . 1 . . . . . . . . . . . . . . . . Part Schematics Acquired 8 | . 1 . 4 . . . 2 . 1 . . . . . . . . . . . . . . . . . . . . . . . . . . Parts Built . | . . . . . . . . . . . . . . . . . . . . . . . . . . . . . . . . . . . . Authchips . | . . . . . . . . . . . . . . . . . . . . . . . . . . . . . . . . . . . . Time . | . . . . . . . . . . . . . . . . . . . . . . . . . . . . . . . . . . . . Total Part Build Rating . | . . . . . . . . . . . . . . . . . . . . . . . . . . . . . . . . . . . . Parts Repaired 11 | . . . . . . . 1 . 5 4 . . . . . . . . . . . . . . 1 . . . . . . . . . . Time 543 | . . . . . . . 44 . 231 194 . . . . . . . . . . . . . . 74 . . . . . . . . . . Parts Recycled . | . . . . . . . . . . . . . . . . . . . . . . . . . . . . . . . . . . . . Recycled Matter . | . . . . . . . . . . . . . . . . . . . . . . . . . . . . . . . . . . . . Retrieved Matter . | . . . . . . . . . . . . . . . . . . . . . . . . . . . . . . . . . . . . Retrieved Components 10 | . . . 10 . . . . . . . . . . . . . . . . . . . . . . . . . . . . . . . . Parts Scanalyzed 7 | . . . 4 . . . 2 . 1 . . . . . . . . . . . . . . . . . . . . . . . . . . Part Schematics Acquired 7 | . . . 4 . . . 2 . 1 . . . . . . . . . . . . . . . . . . . . . . . . . . Parts Damaged 1 | . . . 1 . . . . . . . . . . . . . . . . . . . . . . . . . . . . . . . . Bothacking | -11 -10 -10 -9 -9 -9 -8 -8 -8 -8 -8 -7 -7 -6 -6 -6 -6 -6 -6 -5 -5 -4 -4 -4 -4 -4 -4 -4 -4 -3 -3 -2 -2 -2 -1 -1 ------------ Run | Yrd Mat Min Mat Min Exi Min Mat Gar Mat Sto Fac Gar Fac Was Fac Gar Fac Gar Fac Gar Fac Was Fac Gar Fac Gar Fac Gar Res Tes Res Qua Sec Acc Com Used RIF Installer 11 | . . . . . . . . 2 . . . 1 . . . 2 . 2 . 1 . . . 1 . 1 . 1 . . . . . . . Coupler Efficiency 2 | . . . . . . . . 1 . . . . . . . 1 . . . . . . . . . . . . . . . . . . . Command Fork 1 | . . . . . . . . . . . . . . . . . . . . . . . . . . 1 . . . . . . . . . Zone Cloak 2 | . . . . . . . . . . . . . . . . 1 . 1 . . . . . . . . . . . . . . . . . Robot Detection 1 | . . . . . . . . . . . . . . . . . . 1 . . . . . . . . . . . . . . . . . Watcher Feeds 1 | . . . . . . . . . . . . . . . . . . . . . . . . 1 . . . . . . . . . . . Patrol Navigation 1 | . . . . . . . . . . . . . . . . . . . . . . . . . . . . 1 . . . . . . . Program Shield 1 | . . . . . . . . . . . . 1 . . . . . . . . . . . . . . . . . . . . . . . Autooverride 1 | . . . . . . . . . . . . . . . . . . . . 1 . . . . . . . . . . . . . . . Robots Hacked 175 | . . . . . . . . . . . . 9 4 6 2 11 12 9 7 12 20 6 1 10 7 12 6 14 27 . . . . . . Non-combat 16 | . . . . . . . . . . . . . 1 . 1 . 3 . . . 7 . . . 1 . 2 . 1 . . . . . . Combat 159 | . . . . . . . . . . . . 9 3 6 1 11 9 9 7 12 13 6 1 10 6 12 4 14 26 . . . . . . Autooverrided 14 | . . . . . . . . . . . . . . . . . . . . 1 3 . 1 . . 1 2 1 5 . . . . . . Robot Hacks Applied 186 | . . . . . . . . . . . . 9 4 6 3 13 15 10 9 12 23 6 . 10 12 11 4 16 23 . . . . . . parse_system 2 | . . . . . . . . . . . . . . . . . . . 1 . . . . . . . . . 1 . . . . . . find_chute 2 | . . . . . . . . . . . . . 1 . . . . . . . 1 . . . . . . . . . . . . . . find_dsf 1 | . . . . . . . . . . . . . . . . . . . . . 1 . . . . . . . . . . . . . . drop_inventory 4 | . . . . . . . . . . . . . . . . . 1 . . . 1 . . . . . 2 . . . . . . . . purge_threat 13 | . . . . . . . . . . . . . . . 1 . 3 . . . 4 . . . 5 . . . . . . . . . . ignore_targets 12 | . . . . . . . . . . . . . . 6 . . . . . . . 6 . . . . . . . . . . . . . emergency_deploy 1 | . . . . . . . . . . . . . . . . . . . . . . . . . . . . . 1 . . . . . . find_garrison 1 | . . . . . . . . . . . . . 1 . . . . . . . . . . . . . . . . . . . . . . link_fov 1 | . . . . . . . . . . . . . . . . . . . . . 1 . . . . . . . . . . . . . . mark_system 1 | . . . . . . . . . . . . . . . . . . . . . . . . . . . . 1 . . . . . . . broadcast_data 1 | . . . . . . . . . . . . . . . . . . . . . . . . . . . . 1 . . . . . . . disrupt_area 1 | . . . . . . . . . . . . . . . . . . . . 1 . . . . . . . . . . . . . . . spike_heat 2 | . . . . . . . . . . . . . . . . 1 . . 1 . . . . . . . . . . . . . . . . amplify_resonance 24 | . . . . . . . . . . . . 2 . . 1 4 1 2 2 . 1 . . 1 . 1 . 3 6 . . . . . . wipe_record 1 | . . . . . . . . . . . . . . . . . 1 . . . . . . . . . . . . . . . . . . disable_weapons 2 | . . . . . . . . . . . . 1 . . . . 1 . . . . . . . . . . . . . . . . . . overwrite_iff 41 | . . . . . . . . . . . . 2 1 . . 2 1 3 . 2 3 . . 8 3 2 . 6 8 . . . . . . formatsys_low 7 | . . . . . . . . . . . . . . . 1 . 2 . . . 2 . . . 1 . . . 1 . . . . . . formatsys_high 69 | . . . . . . . . . . . . 4 1 . . 6 5 5 5 9 9 . . 1 3 8 2 5 6 . . . . . . Relay Couplers Released 121 | . . . . . . . . 9 . . 3 21 . . . 7 . 15 . 15 . . . 22 . 18 . 11 . . . . . . . Ejected 3 | . . . . . . . . . . . 3 . . . . . . . . . . . . . . . . . . . . . . . . Machine Destruction 118 | . . . . . . . . 9 . . . 21 . . . 7 . 15 . 15 . . . 22 . 18 . 11 . . . . . . . Attached 59 | . . . . . . . . . . . . 4 . 1 1 4 3 4 3 6 5 . . 6 2 6 . 5 8 . 1 . . . . Fabnet Peak Effective % . | . . . . . . . . . . . . . . . . . . . . . . . . . . . . . . . . . . . . Robots Rewired 23 | . . . . . . . . . . . . 12 . . . . . 6 . . . . . 3 . . . 2 . . . . . . . Allies Hacked 2 | . . . . . . . . . . . . . . . . . . . . . . . . . . . 1 . 1 . . . . . . Hacks Repelled . | . . . . . . . . . . . . . . . . . . . . . . . . . . . . . . . . . . . . Allies | -11 -10 -10 -9 -9 -9 -8 -8 -8 -8 -8 -7 -7 -6 -6 -6 -6 -6 -6 -5 -5 -4 -4 -4 -4 -4 -4 -4 -4 -3 -3 -2 -2 -2 -1 -1 -------- Run | Yrd Mat Min Mat Min Exi Min Mat Gar Mat Sto Fac Gar Fac Was Fac Gar Fac Gar Fac Gar Fac Was Fac Gar Fac Gar Fac Gar Res Tes Res Qua Sec Acc Com Total Allies 262 | . . 3 . 1 . . 2 . 1 1 . 18 2 . 1 7 8 14 6 11 16 20 1 12 7 14 7 17 23 . . . . 28 42 Largest Group 24 | . . 3 . 1 1 . 1 2 1 1 1 13 11 3 1 2 3 9 3 9 9 24 22 21 20 16 17 21 20 . . . . 8 10 Highest-Rated Group 1232 | . . 40 . 31 31 . 10 25 10 10 10 353 288 96 26 80 109 255 83 391 629 1074 998 1006 992 769 782 1232 1185 . . . . 112 139 Highest-Rated Ally 148 | . . 16 . 31 31 . 10 15 10 10 10 39 39 32 26 47 47 47 49 85 137 137 137 137 137 137 65 148 148 . . . . 15 15 Total Orders 56 | . . . . . . . 6 8 6 . . 4 . . . . . 13 2 6 3 2 . . . . . 5 1 . . . . . . STAY 29 | . . . . . . . 3 4 3 . . 2 . . . . . 8 . 4 1 1 . . . . . 3 . . . . . . . FOLLOW 24 | . . . . . . . 3 4 3 . . 2 . . . . . 5 1 2 1 1 . . . . . 2 . . . . . . . AID 3 | . . . . . . . . . . . . . . . . . . . 1 . 1 . . . . . . . 1 . . . . . . Ally Attacks 1510 | . . 19 . . . . . 1 . . . 90 50 40 . 31 26 58 20 69 146 102 19 180 47 151 44 102 263 . . . . 14 38 Total Damage 48106 | . . 151 . . . . . 31 . . . 1799 1803 2009 . 1012 820 1208 319 2213 5972 4223 190 5685 1210 4272 1175 4086 9110 . . . . 217 601 Kills 291 | . . 5 . . . . . . . . . 21 13 2 . 4 7 15 2 20 45 6 1 33 7 35 9 16 48 . . . . 1 1 Allies Corrupted 13 | . . . . . . . . . . . . 1 3 . . 1 . 1 1 . 3 . . 1 . . . 1 1 . . . . . . Allies Melted 5 | . . . . . . . . . . . . . . . . . . . . . 1 1 . 2 . 1 . . . . . . . . . Intel | -11 -10 -10 -9 -9 -9 -8 -8 -8 -8 -8 -7 -7 -6 -6 -6 -6 -6 -6 -5 -5 -4 -4 -4 -4 -4 -4 -4 -4 -3 -3 -2 -2 -2 -1 -1 ------- Run | Yrd Mat Min Mat Min Exi Min Mat Gar Mat Sto Fac Gar Fac Was Fac Gar Fac Gar Fac Gar Fac Was Fac Gar Fac Gar Fac Gar Res Tes Res Qua Sec Acc Com Robot Analysis Total 6 | . . 1 2 . . 3 . . . . . . . . . . . . . . . . . . . . . . . . . . . . . Derelict Logs Recovered 3 | . . 2 . 1 . . . . . . . . . . . . . . . . . . . . . . . . . . . . . . . Drone Launches . | . . . . . . . . . . . . . . . . . . . . . . . . . . . . . . . . . . . . Drone Recoveries . | . . . . . . . . . . . . . . . . . . . . . . . . . . . . . . . . . . . . Exploration | -11 -10 -10 -9 -9 -9 -8 -8 -8 -8 -8 -7 -7 -6 -6 -6 -6 -6 -6 -5 -5 -4 -4 -4 -4 -4 -4 -4 -4 -3 -3 -2 -2 -2 -1 -1 ------------- Run | Yrd Mat Min Mat Min Exi Min Mat Gar Mat Sto Fac Gar Fac Was Fac Gar Fac Gar Fac Gar Fac Was Fac Gar Fac Gar Fac Gar Res Tes Res Qua Sec Acc Com Turns Passed 40744 | 98 1273 777 3597 979 364 387 5063 1294 3175 2915 835 1608 268 138 424 1539 625 1821 1610 1699 1247 1220 396 1191 298 1080 591 1198 969 65 501 95 709 223 472 Spaces Moved 20035 | 58 693 471 1713 583 225 228 1826 407 1087 1033 430 789 128 81 249 753 337 753 688 736 486 339 128 600 152 612 368 622 563 121 689 232 668 391 796 Core 663 | 2 . . . . . . . . . . . . . . . . . . . . . . . . . . . . 159 121 359 . 22 . . Treads 15307 | 56 693 471 1713 583 225 228 1826 407 1087 1033 22 167 128 81 249 753 337 753 494 290 486 339 128 600 152 612 368 622 404 . . . . . . Legs 1578 | . . . . . . . . . . . . . . . . . . . . . . . . . . . . . . . . . 391 391 796 Wheels 1670 | . . . . . . . . . . . 408 622 . . . . . . 194 446 . . . . . . . . . . . . . . . Hover . | . . . . . . . . . . . . . . . . . . . . . . . . . . . . . . . . . . . . Flight 817 | . . . . . . . . . . . . . . . . . . . . . . . . . . . . . . . 330 232 255 . . Fastest Speed 30 | 50 160 160 160 160 160 160 160 246 238 225 160 145 160 160 160 160 160 155 165 165 160 152 152 152 152 152 152 152 50 50 31 34 30 30 30 Average Speed 168 | 156 160 160 177 160 160 160 243 249 239 234 163 153 160 160 160 160 160 203 215 195 234 201 228 170 155 152 152 163 137 50 43 36 33 30 30 Slowest Speed 320 | 160 240 160 240 160 160 160 250 250 246 250 231 160 160 160 160 160 160 235 275 320 255 320 232 232 170 152 152 232 232 50 300 37 60 30 30 Overloaded Moves . | . . . . . . . . . . . . . . . . . . . . . . . . . . . . . . . . . . . . Propulsion Burnouts . | . . . . . . . . . . . . . . . . . . . . . . . . . . . . . . . . . . . . Robots Hopped 4 | . . . . . . . . . . . . . . . . . . . . . . . . . . . . . . . 2 1 1 . . Cave-ins Triggered . | . . . . . . . . . . . . . . . . . . . . . . . . . . . . . . . . . . . . Exploration Rate (%) 52 | 4 86 87 98 98 61 55 98 60 68 92 15 94 6 74 8 81 10 81 19 87 18 90 3 82 7 91 21 58 25 37 23 39 51 13 34 Regions Visited 35 Branch Regions 9 Pre-discovered Areas 11 | . 3 2 3 . 1 . 2 . . . . . . . . . . . . . . . . . . . . . . . . . . . . Known Exits Taken 14 | . . 1 1 . . 1 1 . 1 1 1 . . . 1 . 1 . 1 . . . 1 . 1 . 1 . . . 1 . . . . Unknown Exits Taken 9 | 1 1 . . 1 1 . . . . . . . . . . . . . . . . . . . . . . . 1 1 . 1 1 1 . Scrap Searched 4 | . . 1 . 1 . 2 . . . . . . . . . . . . . . . . . . . . . . . . . . . . . Spaces Dug 219 | . . . . . . . . 1 7 15 1 3 . . 2 17 . 1 . 4 5 . . 4 . . 1 3 . . 8 . 3 28 116 Terrain Destroyed 514 | . 10 . . . . . 23 33 23 31 4 12 7 . 6 19 1 12 . 45 9 4 . 5 . 3 1 6 30 . 13 . 13 29 175 Melee 11 | . . . . . . . . . . . . . . . . . . . . . . . . . . . . . . . 8 . 2 1 . Projectile 292 | . 4 . . . . . . . 23 26 4 12 7 . 6 5 1 7 . 9 9 4 . 5 . 3 1 6 7 . 5 . 11 28 109 AOE 211 | . 6 . . . . . 23 33 . 5 . . . . . 14 . 5 . 36 . . . . . . . . 23 . . . . . 66 Terrain Rammed . | . . . . . . . . . . . . . . . . . . . . . . . . . . . . . . . . . . . . Walls Destroyed . | . . . . . . . . . . . . . . . . . . . . . . . . . . . . . . . . . . . . Machines Disabled . | . . . . . . . . . . . . . . . . . . . . . . . . . . . . . . . . . . . . Actions | -11 -10 -10 -9 -9 -9 -8 -8 -8 -8 -8 -7 -7 -6 -6 -6 -6 -6 -6 -5 -5 -4 -4 -4 -4 -4 -4 -4 -4 -3 -3 -2 -2 -2 -1 -1 --------- Run | Yrd Mat Min Mat Min Exi Min Mat Gar Mat Sto Fac Gar Fac Was Fac Gar Fac Gar Fac Gar Fac Was Fac Gar Fac Gar Fac Gar Res Tes Res Qua Sec Acc Com Total 24980 | 63 784 484 2033 609 231 236 2197 575 1550 1349 503 1039 169 88 270 940 398 936 768 923 569 852 233 764 206 757 399 801 738 122 850 240 913 464 927 Wait 2182 | . 8 6 122 12 . . 167 25 337 199 21 29 6 . 8 38 1 57 7 22 5 473 97 62 22 59 17 99 46 . 104 . 34 36 63 Move 19999 | 57 692 470 1712 582 224 227 1826 406 1086 1032 429 788 128 80 248 752 337 752 688 735 486 338 127 599 152 611 368 621 562 120 684 229 666 390 795 Hop 4 | . . . . . . . . . . . . . . . . . . . . . . . . . . . . . . . 2 1 1 . . Pick Up 194 | . 17 1 13 . 2 1 17 17 17 5 3 10 . . 2 9 5 8 8 15 4 2 2 10 . 6 2 6 2 1 4 2 3 . . Fast Attach 110 | 6 8 . 5 . . . 4 . 8 7 4 6 2 . . 6 5 2 3 5 3 1 1 1 1 2 1 4 2 . 7 1 12 1 2 Attach 105 | . . . 3 . . 1 14 5 . 1 2 2 2 1 . 8 3 10 5 3 3 . . 6 3 2 . 2 11 . 5 2 5 6 . Detach 58 | . 6 . 2 . . . 1 . 1 1 2 1 2 . . 6 3 3 2 2 . . 2 4 1 1 . 1 . . 5 2 5 4 1 Swap 209 | . 3 . 19 1 1 . 21 23 9 10 3 10 . . 2 25 8 13 12 14 7 4 1 6 2 3 1 3 8 . . . . . . Drop 201 | . 9 1 27 1 4 . 17 7 20 9 9 17 . . 1 5 4 . 4 16 5 5 2 8 . 2 3 7 4 . 6 2 6 . . Fire 1689 | . 38 6 119 9 . 7 130 84 65 73 28 148 29 7 9 83 31 81 38 81 48 29 1 56 21 67 7 57 102 . 12 1 146 15 61 Melee 36 | . . . . . . . . . . . . . . . . . . . . . . . . . . . . . 1 1 21 . 4 9 . Ram 3 | . . . . . . . . . . . 2 1 . . . . . . . . . . . . . . . . . . . . . . . Kick 26 | . . . . . . . . . . . . . . . . . . . . . . . . . . . . . . . . . 25 . 1 Crush 41 | . 3 . 11 4 . . . . 5 4 . . . . . 1 . . . 2 4 . . 1 4 2 . . . . . . . . . Escape Stasis 68 | . . . . . . . . 8 . . . 16 . . . . . 2 . 24 2 . . 8 . 1 . . . . . . . 3 4 Rewire 45 | . . . . . . . . . . . . 11 . . . 7 1 8 1 4 2 . . 3 . 1 . 1 . . . . 6 . . Trap . | . . . . . . . . . . . . . . . . . . . . . . . . . . . . . . . . . . . . Miscellaneous 10 | . . . . . . . . . 2 8 . . . . . . . . . . . . . . . . . . . . . . . . . Route ------- -11/Scrapyard -10/Materials (discovered 6 exits: *Mat x3 / *Min x2 / Sub) -10/Mines (discovered 2 exits: *Mat x2) -9/Materials (discovered 5 exits: *Mat x3 / *Min x2) -9/Mines (discovered 3 exits: *Mat x2 / *Exi) -9/Exiles (discovered 2 exits: *Min x2) -8/Mines -8/Materials (discovered 6 exits: *Fac x3 / *Sto x2 / Gar) -8/Garrison (discovered 4 exits: *Mat x4) -8/Materials (discovered 4 exits: *Fac x2 / *Sto x2) -8/Storage (discovered 2 exits: *Fac / Rec) -7/Factory (discovered 3 exits: Fac / Low / Gar) -7/Garrison (discovered 3 exits: *Fac x3) -6/Factory (discovered 2 exits: *Low x2) -6/Waste -6/Factory -6/Garrison (discovered 4 exits: *Fac x3 / *Fac) -6/Factory -6/Garrison (discovered 2 exits: *Fac x2) -5/Factory (discovered 4 exits: *Fac / [*Upp] / Ext / Gar) -5/Garrison (discovered 3 exits: *Fac x3) -4/Factory -4/Waste -4/Factory -4/Garrison (discovered 3 exits: *Fac x3) -4/Factory -4/Garrison (discovered 4 exits: [*Res x3] / *Fac) -4/Factory (discovered 3 exits: [*Res x2] / Gar) -4/Garrison (discovered 3 exits: [*Res x3]) -3/Research -3/Testing -2/Research (discovered 2 exits: *Qua x2) -2/Quarantine -2/Section 7 -1/Access -1/Command To Fleet Rendezvous History --------- Turn | Location | Event 13 | -11/Scrapyard | Discovered new exit (range 15) 99 | -11/Scrapyard | Entered Materials 285 | -10/Materials | Discovered new exit (range 16) 315 | -10/Materials | Build established: Mutant 569 | -10/Materials | Discovered new exit (range 15) 775 | -10/Materials | Central database locked down 860 | -10/Materials | Discovered new exit (range 9) 944 | -10/Materials | Learned location of 1 exit from Storage 1084 | -10/Materials | Learned 2 Mines zone layouts 1139 | -10/Materials | Identified exit to Subcaves 1139 | -10/Materials | Identified exit to Materials 1159 | -10/Materials | Discovered exit to Materials (range 15) 1184 | -10/Materials | Learned location of 2 exits from Subcaves 1244 | -10/Materials | Learned Storage trap positions 1277 | -10/Materials | Learned 4 Subcaves zone layouts 1319 | -10/Materials | Learned 4 Recycling zone layouts 1370 | -10/Materials | Learned location of Storage (-8) 1372 | -10/Materials | Entered Mines 1387 | -10/Mines | Assisted by bots powering up and referring to "LRC-V3" 1804 | -10/Mines | Learned Materials security intel 1864 | -10/Mines | Learned location of Zion (-6) 2021 | -10/Mines | Received a Rocket Launcher from a helpful Derelict 2085 | -10/Mines | Discovered exit to Materials (range 10) 2112 | -10/Mines | Central database locked down 2127 | -10/Mines | Discovered exit to Materials (range 9) 2149 | -10/Mines | Entered Materials 2149 | -9/Materials | Evolved 2 slots: Propulsion x1, Utility x1 3096 | -9/Materials | Build established: Scavenger-Mutant 3154 | -9/Materials | Discovered new exit (range 8) 3262 | -9/Materials | Learned Storage trap positions 3338 | -9/Materials | Learned location of Mines (-9) 3353 | -9/Materials | Discovered new exit (range 5) 3405 | -9/Materials | Learned location of 1 exit from Storage 3461 | -9/Materials | Learned Storage garrison access intel 3562 | -9/Materials | Identified exit to Materials 3621 | -9/Materials | Discovered new exit (range 8) 3812 | -9/Materials | Build established: Mutant 5067 | -9/Materials | Identified exit to Mines 5349 | -9/Materials | First assault squad dispatched 5746 | -9/Materials | Entered Mines 5774 | -9/Mines | Met a Derelict bent on vengeance 6258 | -9/Mines | Deemed a non-threat by the Exiles lab entrance 6484 | -9/Mines | Received a Mining Laser from a helpful Derelict 6718 | -9/Mines | Discovered new exit (range 5) 6725 | -9/Mines | Entered Exiles 6725 | -9/Exiles | Accompanied by 1 ally 6751 | -9/Exiles | Discovered new exit (range 15) 6765 | -9/Exiles | Met 8R-AWN 6793 | -9/Exiles | Met EX-HEX 6836 | -9/Exiles | Met EX-BIN 6861 | -9/Exiles | Aligned with FarCom system 6863 | -9/Exiles | Given EX-Vault access code 6903 | -9/Exiles | Opened EX-Vault 6927 | -9/Exiles | Found Latent Energy Streamer 6932 | -9/Exiles | Found AWS/Autocannon 6965 | -9/Exiles | Warned to stay clear of 0b10 Research branches 6974 | -9/Exiles | Exiles lab attacked by MAIN.C 7075 | -9/Exiles | Discovered new exit (range 11) 7089 | -9/Exiles | Stole two prototypes: Latent Energy Streamer, AWS/Autocannon 7089 | -9/Exiles | Entered Mines 7476 | -8/Mines | Entered Materials 7476 | -8/Materials | Evolved 2 slots: Utility x2 7477 | -8/Materials | Identified exit to Storage 7605 | -8/Materials | Lost 3 parts (1n1u1w) 8242 | -8/Materials | Build established: Scavenger-Mutant 8482 | -8/Materials | Identified exit to Factory 10314 | -8/Materials | Build established: Mutant 10325 | -8/Materials | Repaired Broken Shield Generator 11562 | -8/Materials | Garrison activated, responded to threat 11632 | -8/Materials | Lost 4 parts (1p1n1u1w) 11707 | -8/Materials | Learned Storage non-interactive machine intel 11855 | -8/Materials | Learned Factory stockpile data 11917 | -8/Materials | Learned Storage trap positions 11968 | -8/Materials | Learned Storage trap positions 12063 | -8/Materials | Learned Storage trap positions 12123 | -8/Materials | Learned location of Lower Caves (-6) 12191 | -8/Materials | Learned 12 Factory zone layouts 12535 | -8/Materials | Identified exit to Garrison 12539 | -8/Materials | Entered Garrison 12539 | -8/Garrison | Accompanied by 2 allies 12556 | -8/Garrison | Discovered new exit (range 73) 12556 | -8/Garrison | Discovered new exit (range 65) 12556 | -8/Garrison | Discovered new exit (range 38) 12556 | -8/Garrison | Discovered new exit (range 51) 12613 | -8/Garrison | Triggered checkpoint 12775 | -8/Garrison | Installed Relay Interface Framework 12833 | -8/Garrison | Triggered checkpoint 12853 | -8/Garrison | Triggered checkpoint 12855 | -8/Garrison | Triggered checkpoint 12866 | -8/Garrison | Triggered checkpoint 12896 | -8/Garrison | Destroyed 14 combat bots 13013 | -8/Garrison | Triggered checkpoint 13067 | -8/Garrison | Garrison Relay disabled 13119 | -8/Garrison | Expanded RIF knowledge: Coupler Efficiency 13641 | -8/Garrison | Triggered checkpoint 13676 | -8/Garrison | Lost 3 parts (1n2w) 13774 | -8/Garrison | Garrison Relay disabled 13833 | -8/Garrison | Entered Materials 13833 | -8/Materials | Accompanied by 1 ally 13965 | -8/Materials | Build established: Bothacker-Mutant 14001 | -8/Materials | Repaired Arm. Treads 14850 | -8/Materials | Discovered exit to Factory (range 15) 15305 | -8/Materials | Repaired Imp. Remote Datajack 15368 | -8/Materials | Repaired Hvy. Phase Cannon 15413 | -8/Materials | Repaired Transmission Jammer 15471 | -8/Materials | Repaired Neutrino Core 16255 | -8/Materials | Discovered exit to Factory (range 13) 16839 | -8/Materials | Core integrity fell below 50% 17008 | -8/Materials | Entered Storage 17009 | -8/Storage | Identified exit to Recycling 17010 | -8/Storage | Loaded intel: 11 trap records 17011 | -8/Storage | Loaded intel: 25 non-interactive machine locations 18975 | -8/Storage | Repaired Hvy. Phase Cannon 19033 | -8/Storage | Repaired Neutrino Core 19797 | -8/Storage | Repaired Gatling Laser 19856 | -8/Storage | Repaired Hrd. Medium Armor Plating 19923 | -8/Storage | Entered Factory 19923 | -7/Factory | Accompanied by 1 ally 19923 | -7/Factory | Evolved 2 slots: Propulsion x1, Utility x1 19924 | -7/Factory | Identified exit to Lower Caves 19924 | -7/Factory | Identified exit to Factory 19925 | -7/Factory | FarCom data flow suspended 20751 | -7/Factory | Identified exit to Garrison 20758 | -7/Factory | Entered Garrison 20758 | -7/Garrison | Accompanied by 1 ally 20796 | -7/Garrison | Triggered checkpoint 20885 | -7/Garrison | Garrison Relay disabled 20894 | -7/Garrison | Garrison Relay disabled 20990 | -7/Garrison | Triggered checkpoint 21244 | -7/Garrison | Triggered checkpoint 21278 | -7/Garrison | Triggered checkpoint 21315 | -7/Garrison | Lost 3 allies 21378 | -7/Garrison | Triggered checkpoint 21428 | -7/Garrison | Triggered checkpoint 21465 | -7/Garrison | Garrison Relay disabled 21516 | -7/Garrison | Discovered exit to Factory (range 11) 21602 | -7/Garrison | Triggered checkpoint 21694 | -7/Garrison | Discovered exit to Factory (range 8) 21732 | -7/Garrison | Triggered checkpoint 21776 | -7/Garrison | Garrison Relay disabled 22140 | -7/Garrison | Discovered exit to Factory (range 10) 22142 | -7/Garrison | Triggered checkpoint 22174 | -7/Garrison | Triggered checkpoint 22226 | -7/Garrison | Expanded RIF knowledge: Program Shield 22262 | -7/Garrison | Garrison Relay disabled 22366 | -7/Garrison | Entered Factory 22366 | -6/Factory | Accompanied by 11 allies 22366 | -6/Factory | Evolved 2 slots: Power x1, Utility x1 22465 | -6/Factory | Discovered new exit (range 15) 22476 | -6/Factory | System corruption reached 10% 22507 | -6/Factory | Lost 5 allies 22568 | -6/Factory | Lost 5 allies 22570 | -6/Factory | Identified exit to Lower Caves 22634 | -6/Factory | Sucked down chute 22634 | -6/Factory | Entered Waste 22647 | -6/Waste | Spotted C-40 Crusher 22649 | -6/Waste | EMP discharged 22664 | -6/Waste | Spotted C-40 Crusher 22667 | -6/Waste | Spotted C-40 Crusher 22668 | -6/Waste | Spotted C-40 Crusher 22679 | -6/Waste | 3 allies followed down the chute 22687 | -6/Waste | Allies destroyed C-40 Crusher 22690 | -6/Waste | Spotted C-40 Crusher 22711 | -6/Waste | Spotted C-40 Crusher 22749 | -6/Waste | EMP discharged 22751 | -6/Waste | Discovered new exit (range 12) 22772 | -6/Waste | Entered Factory 22794 | -6/Factory | Identified exit to Garrison 23196 | -6/Factory | Entered Garrison 23196 | -6/Garrison | Accompanied by 1 ally 23254 | -6/Garrison | Triggered checkpoint 23457 | -6/Garrison | Expanded RIF knowledge: Coupler Efficiency 23481 | -6/Garrison | Spotted B-75 Beast 23488 | -6/Garrison | Triggered checkpoint 23509 | -6/Garrison | System corruption reached 30% 23525 | -6/Garrison | Destroyed B-75 Beast 23717 | -6/Garrison | Discovered new exit (range 11) 23724 | -6/Garrison | Build established: Botlord-Mutant 23810 | -6/Garrison | Triggered checkpoint 23988 | -6/Garrison | Triggered checkpoint 24030 | -6/Garrison | Discovered new exit (range 5) 24056 | -6/Garrison | Discovered new exit (range 12) 24170 | -6/Garrison | Garrison Relay disabled 24307 | -6/Garrison | Discovered new exit (range 15) 24344 | -6/Garrison | Expanded RIF knowledge: Zone Cloak 24370 | -6/Garrison | Triggered checkpoint 24542 | -6/Garrison | Garrison Relay disabled 24618 | -6/Garrison | Triggered checkpoint 24735 | -6/Garrison | Entered Factory 24735 | -6/Factory | Accompanied by 2 allies 24930 | -6/Factory | Found Prototype Processor 24930 | -6/Factory | Identified Exp. Targeting Computer 24935 | -6/Factory | Found Exp. Targeting Computer 25085 | -6/Factory | Lost 3 allies 25360 | -6/Factory | Identified exit to Garrison 25360 | -6/Factory | Entered Garrison 25360 | -6/Garrison | Accompanied by 3 allies 25446 | -6/Garrison | Lost 3 allies 25494 | -6/Garrison | Expanded RIF knowledge: Zone Cloak 25589 | -6/Garrison | Garrison Relay disabled 25702 | -6/Garrison | Triggered checkpoint 25809 | -6/Garrison | Triggered checkpoint 25836 | -6/Garrison | Triggered checkpoint 25844 | -6/Garrison | Triggered checkpoint 25993 | -6/Garrison | Garrison Relay disabled 26157 | -6/Garrison | Expanded RIF knowledge: Robot Detection 26464 | -6/Garrison | Discovered new exit (range 14) 26519 | -6/Garrison | Garrison Relay disabled 26658 | -6/Garrison | Triggered checkpoint 26683 | -6/Garrison | Garrison Relay disabled 26743 | -6/Garrison | Lost 4 allies 26956 | -6/Garrison | Lost 3 allies 26963 | -6/Garrison | Spotted Striker 27017 | -6/Garrison | Core integrity fell below 50% 27033 | -6/Garrison | Destroyed Striker 27039 | -6/Garrison | Lost 3 parts (3u) 27118 | -6/Garrison | Discovered new exit (range 11) 27181 | -6/Garrison | Entered Factory 27181 | -5/Factory | Evolved 2 slots: Utility x2 27182 | -5/Factory | Identified exit to Extension 27829 | -5/Factory | Discovered new exit (range 5) 28126 | -5/Factory | Discovered new exit (range 15) 28473 | -5/Factory | Fabricated M-13 Machinist (x1) 28791 | -5/Factory | Identified exit to Garrison 28791 | -5/Factory | Entered Garrison 28791 | -5/Garrison | Accompanied by 2 allies 28807 | -5/Garrison | Triggered checkpoint 28835 | -5/Garrison | Garrison Relay disabled 29044 | -5/Garrison | Spotted B-75 Beast 29051 | -5/Garrison | Assimilated Beast 6a with formatsys_high 29061 | -5/Garrison | Triggered checkpoint 29067 | -5/Garrison | Triggered checkpoint 29165 | -5/Garrison | Triggered checkpoint 29230 | -5/Garrison | Discovered new exit (range 14) 29317 | -5/Garrison | Triggered checkpoint 29348 | -5/Garrison | Garrison Relay disabled 29607 | -5/Garrison | Expanded RIF knowledge: Autooverride 29645 | -5/Garrison | Discovered new exit (range 12) 29675 | -5/Garrison | Garrison Relay disabled 29894 | -5/Garrison | Discovered new exit (range 10) 29961 | -5/Garrison | Triggered checkpoint 30050 | -5/Garrison | Garrison Relay disabled 30490 | -5/Garrison | Entered Factory 30490 | -4/Factory | Accompanied by 9 allies 30490 | -4/Factory | Evolved 2 slots: Utility x2 31107 | -4/Factory | Found Prototype Device 31107 | -4/Factory | Identified Exp. ECM Suite 31490 | -4/Factory | First assault squad dispatched 31737 | -4/Factory | Sucked down chute 31737 | -4/Factory | Entered Waste 31738 | -4/Waste | Met a frightened Derelict 31762 | -4/Waste | Spotted C-40 Crusher 31768 | -4/Waste | Spotted C-40 Crusher 31777 | -4/Waste | Spotted C-40 Crusher 31783 | -4/Waste | Spotted C-40 Crusher 31811 | -4/Waste | Spotted C-40 Crusher 31817 | -4/Waste | Allies destroyed C-40 Crusher 31845 | -4/Waste | Spotted C-40 Crusher 31852 | -4/Waste | 8 allies followed down the chute 32054 | -4/Waste | Warlord forces began an assault 32330 | -4/Waste | Discovered new exit (range 12) 32957 | -4/Waste | Entered Factory 32957 | -4/Factory | Accompanied by 21 allies 33041 | -4/Factory | Found Quantum Capacitor 33219 | -4/Factory | Identified exit to Garrison 33353 | -4/Factory | Entered Garrison 33353 | -4/Garrison | Accompanied by 21 allies 33407 | -4/Garrison | Triggered checkpoint 33486 | -4/Garrison | Garrison Relay disabled 33600 | -4/Garrison | Spotted B-86 Titan 33602 | -4/Garrison | Triggered checkpoint 33603 | -4/Garrison | Triggered checkpoint 33629 | -4/Garrison | Allies destroyed B-86 Titan 33649 | -4/Garrison | Triggered checkpoint 33658 | -4/Garrison | Lost 6 allies 33681 | -4/Garrison | Triggered checkpoint 33775 | -4/Garrison | Expanded RIF knowledge: Watcher Feeds 33786 | -4/Garrison | Discovered new exit (range 12) 33853 | -4/Garrison | Garrison Relay disabled 34029 | -4/Garrison | Garrison Relay disabled 34067 | -4/Garrison | Triggered checkpoint 34087 | -4/Garrison | Garrison Relay disabled 34163 | -4/Garrison | Found Unknown Hackware 34167 | -4/Garrison | Found Unknown Hackware 34170 | -4/Garrison | Found Unknown Hackware 34173 | -4/Garrison | Found Unknown Hackware 34184 | -4/Garrison | Identified Relay Coupler [Proto] (x4) 34196 | -4/Garrison | Discovered new exit (range 13) 34335 | -4/Garrison | Triggered checkpoint 34355 | -4/Garrison | Garrison Relay disabled 34409 | -4/Garrison | Discovered new exit (range 12) 34467 | -4/Garrison | Learned Factory security intel 34544 | -4/Garrison | Entered Factory 34544 | -4/Factory | Accompanied by 16 allies 34692 | -4/Factory | Repaired Biometal Heavy Treads 34730 | -4/Factory | Garrison activated, responded to threat 34838 | -4/Factory | Identified exit to Garrison 34842 | -4/Factory | Entered Garrison 34842 | -4/Garrison | Accompanied by 15 allies 34863 | -4/Garrison | Lost 4 allies 34876 | -4/Garrison | Triggered checkpoint 34938 | -4/Garrison | Garrison Relay disabled 34992 | -4/Garrison | Spotted B-86 Titan 35034 | -4/Garrison | Triggered checkpoint 35040 | -4/Garrison | Allies destroyed B-86 Titan 35059 | -4/Garrison | Triggered checkpoint 35065 | -4/Garrison | Lost 9 allies 35069 | -4/Garrison | Triggered checkpoint 35145 | -4/Garrison | Discovered new exit (range 5) 35236 | -4/Garrison | Triggered checkpoint 35262 | -4/Garrison | Garrison Relay disabled 35390 | -4/Garrison | Rescued a captive Derelict 35394 | -4/Garrison | Discovered new exit (range 4) 35414 | -4/Garrison | Triggered checkpoint 35448 | -4/Garrison | Learned Research security intel 35458 | -4/Garrison | Garrison Relay disabled 35503 | -4/Garrison | Found embedded Infiltrators 35646 | -4/Garrison | Triggered checkpoint 35663 | -4/Garrison | Discovered new exit (range 5) 35688 | -4/Garrison | Discovered new exit (range 10) 35716 | -4/Garrison | Triggered checkpoint 35750 | -4/Garrison | Expanded RIF knowledge: Command Fork 35773 | -4/Garrison | Garrison Relay disabled 35800 | -4/Garrison | Triggered checkpoint 35922 | -4/Garrison | Entered Factory 35922 | -4/Factory | Accompanied by 11 allies 36089 | -4/Factory | Allied Derelicts emerged from ambush trap array 36358 | -4/Factory | Found Exp. Terrain Scan Processor 36414 | -4/Factory | Discovered new exit (range 10) 36422 | -4/Factory | First assault squad dispatched 36466 | -4/Factory | Discovered new exit (range 8) 36496 | -4/Factory | Identified exit to Garrison 36513 | -4/Factory | Entered Garrison 36513 | -4/Garrison | Accompanied by 15 allies 36629 | -4/Garrison | Triggered checkpoint 36643 | -4/Garrison | Triggered checkpoint 36666 | -4/Garrison | Triggered checkpoint 36715 | -4/Garrison | Discovered new exit (range 82) 36715 | -4/Garrison | Discovered new exit (range 65) 36715 | -4/Garrison | Discovered new exit (range 93) 36815 | -4/Garrison | Garrison Relay disabled 36910 | -4/Garrison | Spotted B-86 Titan 36927 | -4/Garrison | Triggered checkpoint 36934 | -4/Garrison | Allies destroyed B-86 Titan 36939 | -4/Garrison | Triggered checkpoint 36959 | -4/Garrison | Triggered checkpoint 36969 | -4/Garrison | Lost 3 allies 37013 | -4/Garrison | Triggered checkpoint 37031 | -4/Garrison | Garrison Relay disabled 37050 | -4/Garrison | Expanded RIF knowledge: Patrol Navigation 37169 | -4/Garrison | Triggered checkpoint 37196 | -4/Garrison | Spotted B-86 Titan 37201 | -4/Garrison | Assimilated Titan 7a with formatsys_high 37202 | -4/Garrison | Spotted B-86 Titan 37222 | -4/Garrison | Allies destroyed B-86 Titan 37233 | -4/Garrison | Rewired B-90 Cyclops 37254 | -4/Garrison | Rewired B-86 Titan 37258 | -4/Garrison | Found Quantum Capacitor 37339 | -4/Garrison | Triggered checkpoint 37345 | -4/Garrison | Garrison Relay disabled 37711 | -4/Garrison | Entered Research 37711 | -3/Research | Accompanied by 20 allies 37711 | -3/Research | Evolved 2 slots: Propulsion x1, Utility x1 37728 | -3/Research | Spotted B-86 Titan 37745 | -3/Research | Allies destroyed B-86 Titan 38048 | -3/Research | High security lockdown imminent 38128 | -3/Research | High security lockdown engaged 38153 | -3/Research | Lost 4 allies 38232 | -3/Research | Lost 3 allies 38328 | -3/Research | Lost 3 allies 38332 | -3/Research | Garrison activated, responded to threat 38365 | -3/Research | Spotted Executioner 38369 | -3/Research | Destroyed Executioner 38449 | -3/Research | Spotted Investigator 38459 | -3/Research | Scanned by Researcher 38463 | -3/Research | Destroyed Investigator 38489 | -3/Research | Spotted Executioner 38496 | -3/Research | Destroyed Executioner 38507 | -3/Research | Lost 12 allies 38552 | -3/Research | Spotted Executioner 38610 | -3/Research | Lost 10 parts (3n7u) 38676 | -3/Research | Discovered new exit (range 8) 38680 | -3/Research | Entered Testing 38689 | -3/Testing | Spotted PP-HSR4VIRTTA 38707 | -3/Testing | System corruption reached 10% 38739 | -3/Testing | Discovered new exit (range 13) 38745 | -3/Testing | Entered Research 38745 | -2/Research | Evolved 2 slots: Power x1, Propulsion x1 38748 | -2/Research | Identified exit to DSF 38858 | -2/Research | Identified exit to Quarantine 38877 | -2/Research | Found Quantum Capacitor 39245 | -2/Research | First assault squad dispatched 39246 | -2/Research | Entered Quarantine 39249 | -2/Quarantine | Found Alien Artifact 39249 | -2/Quarantine | Identified Core Reset Matrix 39249 | -2/Quarantine | Used Core Reset Matrix 39252 | -2/Quarantine | Spotted Alpha 7 39253 | -2/Quarantine | Detected hypermatrix surge 39253 | -2/Quarantine | Sensed 6 artifacts in vicinity 39272 | -2/Quarantine | Found Core Stripper 39284 | -2/Quarantine | Lost 3 parts (1p2n) 39310 | -2/Quarantine | Spotted Fortress 39339 | -2/Quarantine | Discovered new exit (range 6) 39341 | -2/Quarantine | Entered Section 7 39342 | -2/Section 7 | Sensed 23 artifacts in vicinity 39345 | -2/Section 7 | Spotted S7 Guard 39366 | -2/Section 7 | Spotted B-90 Cyclops 39408 | -2/Section 7 | Lost 3 parts (1p2n) 39411 | -2/Section 7 | Spotted Alpha 7 39428 | -2/Section 7 | Spotted Alpha 7 39434 | -2/Section 7 | Spotted B-99 Colossus 39462 | -2/Section 7 | Integrated with Sigix Exoskeleton 39467 | -2/Section 7 | Spotted Executioner 39467 | -2/Section 7 | Spotted Executioner 39478 | -2/Section 7 | Destroyed Executioner 39486 | -2/Section 7 | Destroyed Executioner 39491 | -2/Section 7 | Found Prototype Processor 39491 | -2/Section 7 | Identified Exp. Targeting Computer 39493 | -2/Section 7 | Found Prototype Processor 39493 | -2/Section 7 | Identified Exp. Core Analyzer 39500 | -2/Section 7 | Found Prototype Device 39500 | -2/Section 7 | Identified Adv. Kinecellerator 39511 | -2/Section 7 | Spotted Striker 39511 | -2/Section 7 | Spotted Striker 39536 | -2/Section 7 | Found Sigix Sheargun 39538 | -2/Section 7 | Found Sigix Sheargun 39635 | -2/Section 7 | Core integrity fell below 50% 39687 | -2/Section 7 | Sigix Exoskeleton integrity reduced to 80% 39693 | -2/Section 7 | Spotted Striker 39693 | -2/Section 7 | Spotted Striker 39701 | -2/Section 7 | Destroyed Striker 39709 | -2/Section 7 | Destroyed Striker 39727 | -2/Section 7 | Destroyed Striker 39740 | -2/Section 7 | Destroyed Striker 39750 | -2/Section 7 | Build established: Alien-Sigix 39759 | -2/Section 7 | Spotted Investigator 39766 | -2/Section 7 | Destroyed Investigator 39799 | -2/Section 7 | Spotted Striker 39813 | -2/Section 7 | Destroyed Striker 39834 | -2/Section 7 | Destroyed 59 combat bots 39892 | -2/Section 7 | Sigix Exoskeleton integrity reduced to 60% 39915 | -2/Section 7 | Spotted Executioner 39922 | -2/Section 7 | Core integrity fell below 20% 39929 | -2/Section 7 | Destroyed Executioner 39977 | -2/Section 7 | Destroyed 32 combat bots 39993 | -2/Section 7 | Spotted Executioner 39993 | -2/Section 7 | Spotted Executioner 40026 | -2/Section 7 | Discovered new exit (range 17) 40046 | -2/Section 7 | Sigix Exoskeleton integrity reduced to 40% 40046 | -2/Section 7 | Spotted S7 Guard 40050 | -2/Section 7 | Entered Access 40050 | -1/Access | Evolved 2 slots: Utility x1, Weapon x1 40055 | -1/Access | Emitted hypermatrix ping 40060 | -1/Access | Assembled emerged from beneath the floor 40066 | -1/Access | Assembled emerged from beneath the floor 40149 | -1/Access | Assembled emerged from beneath the floor 40159 | -1/Access | Discovered new exit (range 17) 40266 | -1/Access | Assembled emerged from beneath the floor 40273 | -1/Access | Entered Command 40278 | -1/Command | Emitted hypermatrix ping 40283 | -1/Command | Assembled emerged from beneath the floor 40344 | -1/Command | Assembled emerged from beneath the floor 40366 | -1/Command | Assembled emerged from beneath the floor 40471 | -1/Command | Phase Generator disabled 40482 | -1/Command | Assembled emerged from beneath the floor 40521 | -1/Command | Discovered new exit (range 17) 40523 | -1/Command | First assault squad dispatched 40540 | -1/Command | Assembled emerged from beneath the floor 40545 | -1/Command | High security lockdown imminent 40559 | -1/Command | Assembled emerged from beneath the floor 40560 | -1/Command | Spotted Executioner 40560 | -1/Command | Spotted Executioner 40560 | -1/Command | Spotted Striker 40560 | -1/Command | Spotted Alpha 7 40560 | -1/Command | Spotted Executioner 40560 | -1/Command | Spotted Executioner 40560 | -1/Command | Spotted Striker 40560 | -1/Command | Spotted Alpha 7 40576 | -1/Command | Destroyed Executioner 40587 | -1/Command | Destroyed Striker 40590 | -1/Command | Destroyed Executioner 40590 | -1/Command | Destroyed Executioner 40595 | -1/Command | Destroyed Alpha 7 40598 | -1/Command | Destroyed Executioner 40598 | -1/Command | Destroyed Alpha 7 40601 | -1/Command | Lost 6 allies 40609 | -1/Command | Destroyed Striker 40618 | -1/Command | Found Exp. Core Analyzer 40623 | -1/Command | Spotted B-99 Colossus 40625 | -1/Command | High security lockdown engaged 40632 | -1/Command | Destroyed 12 combat bots 40636 | -1/Command | Destroyed B-99 Colossus 40641 | -1/Command | Spotted B-99 Colossus 40660 | -1/Command | Destroyed B-99 Colossus 40745 | *** | Heading to fleet! Last Messages --------------- 40729_ Quantum Shear penetrates G-73 Enforcer. 40732_ Critical hit (Burn: +37). 40732_ Quantum Shear penetrates G-73 Enforcer. 40732_ G-73 Enforcer destroyed. 40734_ Quantum Shear penetrates G-73 Enforcer. 40734_ Destroyed Unknown Device. 40734_ Quantum Shear penetrates G-73 Enforcer. 40734_ G-73 Enforcer Unknown Leg severed. 40734_ Quantum Shear penetrates I-47 Archangel. 40734_ I-47 Archangel destroyed. 40737_ Quantum Shear penetrates G-73 Enforcer. 40737_ G-73 Enforcer destroyed. 40737_ Switching to secondary target: G-73 Enforcer. 40737_ Quantum Shear penetrates Wall. 40740_ Quantum Shear penetrates G-73 Enforcer. 40740_ G-73 Enforcer destroyed. 40740_ Switching to secondary target: G-73 Enforcer. 40740_ Quantum Shear penetrates G-73 Enforcer. 40742_ G-73 Enforcer destroyed. 40745_ ALERT: Assault forces dispatched. Map ----- +----------------------------------------------------+ | | | | | | | | | | | | | | | | | | | | | | | | | ??????????????#################################### | | ?????????????##################################### | | ????????????###################################### | | ???????????####################################### | | ??????????? ############## | | ??????????# ####################### ###### ### | | ?????????## # ################## ###### ### | | ?????????## # ################## # | | ?????????## # !!### ########## # | | ????????### # ! ### ;######### | | ???????? + ### ^ ^^^ ########### | | ???????? # ### ^ ### # | | ???????? # ### ^ ;## # | | ???????? # ### ^ =X=*[ ### + | | ??????? + ### =%!==^! ###! # | | ????????#+#+#######;] */=%!!! ### #+####+# | | ???????? ###;*!*[*%!=!!]=### # | | ???????? ####!!^[%^*[^^![### # | | ???????? ####%!]=!%/!!%!]########### = | | ???????? "####=[!%==!%!*=*########### | | ????????? ""#####!![!^[^*!#[########### | | ????????? ""#####=!^^!!^^*=################+## | | ???????? ""#####[**^^=^=%*############### | | ???????#=![ ""#####*%^^^^%^%!############# # | | ???????#=[ T"######!^^!!^^!################ "" | | ??????##![ ""#####; %%^%!^=################] "" | | ?????### ""#####;;^^^^! ;###############% " | | ?????### ""#####;%^^[^=^ ################ | | ?????### ""######"^^^= ""###############] | | ????### "######"^^%^ "################ | | ????#### ######""""%"%"#################### | | ????#### #######" %% "### ############## | | ????#################### % = ####! ######## | | ????##### %% ! *=!==!=!=#"!!"#"### ## | | ???###### = !%=!%![![!*%!"=[ "!## ### | | ????##### % !!=[%!%%=%"[*[ ==%!/*# | | ""?? """" %= # [!!%=!!+!=! """#%## | | "T?? """ % # ==!%%!!!! ####!!# | +----------------------------------------------------+ Best States ------------- Heat Dissipation 122 Coolant Potential 100 Energy Generation 71 Energy Capacity 1115 Matter Stores 300 Matter Capacity 300 Sight Range 16 Terrain Scan Density 10 Jamming Range 16 Armor Coverage 1200 Resistance: KI 50 Resistance: TH 50 Resistance: EX 50 Resistance: EM 50 Resistance: I 50 Resistance: S 50 Resistance: P 50 Utility Shielding 66 Evasion (%) 69 Targeting Accuracy 12 Core Analysis 12 Armor Integrity Analysis 40 Recoil Reduction 5 Offensive Hacking 10 Relay Coupler Types 5 Relay Coupler Value 168 Authchip Count 1 Item Schematics ----------------- None Robot Schematics ------------------ None Fabricated ------------ M-13 Machinist | x1 | -5/Factory | Authchip Alien Tech Used ----------------- Core Reset Matrix Sigix Exoskeleton Sigix Sheargun Core Stripper Achievements -------------- None Challenges ------------ None Game ------ Seed SegregatorCentriumTube Manual? 0 Play Time 04:12:54 Cumulative 526.5 hours Start 2024.11.09 @ 07:37:53 End 2024.11.10 @ 10:18:24 Sessions 15 Manual Loads 0 Difficulty Rogue Special Mode None Game No. 305 Rogue 305 Adventurer 0 Explorer 0 Win Type 2 Total 40 Types 27/3/5/1/1/0/1/1/1 Lore% 81 Gallery% 85 Achievement% 85 Wizard Run 0 Options --------- Layout 0 ASCII 0 Keyboard 1 Movement Numpad Keybinds 0 Fullscreen 2 Font 18/SmallcapsGlow Map View 76x50 Zoom Use 0% Tactical HUD 1 Map Filters NONE Filters NONE Steam 1 RUN: 6e9e4847-d31e-4943-a411-16ff3b0d8210